Cogmind - Beta 15 @@@ ROGUE MODE // 2025.07.31 @ 14:44:14 Player: C0-2MO Result: Destroyed by H-88 Terminator with KE Penetrator Performance ------------- Evolutions (9) 4500 Regions Visited (30) 6000 Robots Destroyed (244) 1220 Value Destroyed (9909) 9909 Prototype IDs (99) 1980 Alien Tech Used (2) 400 Bonus (12926) 12926 TOTAL SCORE: 36935 Bonus ------- High Alert Combat Kills 1332 Follower Combat Kills 3825 Met Data Miner 300 Met Imprinter 300 Was Imprinted 300 Met Zhirov 300 Met Warlord at Base 500 MAIN.C Attacked Warlord 500 Warlord Defense Kills 1630 Acquired SGEMP 2000 Delivered SGEMP 2000 Friendly Fire -61 Cogmind --------- Core Integrity 0/1600 Matter 141/300 Energy 98/100 System Corruption 10% Temperature Cool (4) Movement Flying (42) Location -1/Command Parts ------- > --- POWER (3) -------- (None) > --- PROPULSION (9) --- Impulse Thruster Array Impulse Thruster Array > --- UTILITY (9) ------ Advanced Signal Interpreter Graphene Brace Makeshift Hacking Suite System Shield > --- WEAPON (4) ------- (None) > --- INVENTORY (5) ---- Quantum Reactor Light Quantum Reactor Improved Hacking Suite Hardcell Cannon Peak State ------------ > --- POWER ------------ Zionite Heavy DM Reactor Light Quantum Reactor > --- PROPULSION ------- Combat Linear Gravjet Combat Linear Gravjet Combat Linear Gravjet Combat Linear Gravjet Cooled Field Propulsion Drive Impulse Thruster Array Experimental Q-thruster Experimental Q-thruster > --- UTILITY ---------- Advanced Visual Processing Unit Experimental Signal Interpreter ECM Suite Makeshift ECM Suite Zionite Shade Armor Graphene Brace Hacking Suite Makeshift Hacking Suite System Shield > --- WEAPON ----------- Zionite Laser-S Zionite Phaser-S Plasma Lance > --- INVENTORY -------- Zionite Shade Carapace Improved Hacking Suite System Shield Vortex Catalyst Activator [Rating: 166] Favorites ----------- Power Reinforced Antimatter Reactor Engine Makeshift Power Source Power Core Micro Nuclear Core Reactor Reinforced Antimatter Reactor Propulsion Armored Huge Wheel Treads Light Treads Leg Carbon-fiber Leg Wheel Armored Huge Wheel Hover Unit Combat Linear Gravjet Flight Unit Improved Cesium-ion Thruster Utility Advanced Sensor Array Device Advanced Sensor Array Storage Huge Storage Unit Processor Experimental Terrain Scan Processor Hackware Hacking Suite Protection Layered Heavy Armor Plating Weapon Phase Gun Energy Gun Phase Gun Energy Cannon Long-range Proton Cannon Ballistic Gun Shotgun Ballistic Cannon Antimatter Cannon Launcher Mini Smartbomb Launcher Special Weapon RU-N14's Throwing Claymores v3 Impact Weapon Makeshift Hammer Slashing Weapon Great Axe Piercing Weapon Plasma Lance Build | -11 -10 -10 -8 -7 -7 -7 -7 -6 -6 -6 -6 -6 -5 -5 -5 -5 -5 -4 -4 -4 -4 -4 -4 -4 -3 -3 -2 -2 -1 -1 ------- Run | Yrd Mat Sub Mat Fac Low Low Dat Pro Fac Low Low Zio Pro Fac Upp Upp War Pro Fac Was Fac Upp Upp Zhi Pro Res Res Tes Acc Com Slots Evolved 18 | . . . 4 2 . . . . 2 . . . . 2 . . . . 2 . . . . . . 2 2 . 2 . Power 2 | . . . . . . . . . . . . . . 1 . . . . 1 . . . . . . . . . . . Propulsion 7 | . . . 2 . . . . . . . . . . . . . . . . . . . . . . 2 2 . 1 . Utility 7 | . . . 2 2 . . . . 2 . . . . . . . . . . . . . . . . . . . 1 . Weapon 2 | . . . . . . . . . . . . . . 1 . . . . 1 . . . . . . . . . . . Parts Attached 307 | 7 8 14 43 11 . . . 1 10 . 1 3 13 34 5 . 11 4 27 3 7 2 . 5 . 17 21 24 24 12 Power 38 | 1 1 4 8 1 . . . . . . . . 2 4 . . 1 1 2 . 1 . . 1 . . 2 4 2 3 Engine 15 | 1 1 4 8 . . . . . . . . . 1 . . . . . . . . . . . . . . . . . Core 4 | . . . . 1 . . . . . . . . . 1 . . . . 1 . . . . . . . . . . 1 Reactor 19 | . . . . . . . . . . . . . 1 3 . . 1 1 1 . 1 . . 1 . . 2 4 2 2 Propulsion 87 | 2 . 5 16 5 . . . . 1 . . . 6 6 . . . . 7 1 . . . 1 . 7 7 11 7 5 Treads 10 | 1 . 2 5 . . . . . . . . . 2 . . . . . . . . . . . . . . . . . Leg 8 | . . . . . . . . . . . . . 4 3 . . . . . . . . . 1 . . . . . . Wheel 24 | 1 . 3 7 . . . . . . . . . . 2 . . . . 7 1 . . . . . 3 . . . . Hover 15 | . . . . . . . . . . . . . . 1 . . . . . . . . . . . . 6 7 1 . Flight 30 | . . . 4 5 . . . . 1 . . . . . . . . . . . . . . . . 4 1 4 6 5 Utility 109 | 2 3 . 10 4 . . . 1 7 . 1 1 4 16 4 . 3 . 14 . 6 1 . 3 . 2 10 5 10 2 Device 54 | 1 . . 4 3 . . . 1 1 . 1 . 4 7 3 . 3 . 9 . 2 1 . 1 . 2 4 3 3 1 Storage 9 | 1 2 . 2 . . . . . 1 . . . . 2 . . . . . . . . . 1 . . . . . . Processor 14 | . 1 . . 1 . . . . . . . . . . 1 . . . 3 . 1 . . . . . 3 2 2 . Hackware 20 | . . . 2 . . . . . 5 . . 1 . 4 . . . . . . 1 . . . . . 3 . 3 1 Protection 12 | . . . 2 . . . . . . . . . . 3 . . . . 2 . 2 . . 1 . . . . 2 . Artifact . | . . . . . . . . . . . . . . . . . . . . . . . . . . . . . . . Weapon 73 | 2 4 5 9 1 . . . . 2 . . 2 1 8 1 . 7 3 4 2 . 1 . . . 8 2 4 5 2 Energy Gun 21 | 1 . . 4 . . . . . . . . . 1 4 . . . 3 3 1 . 1 . . . . . . 3 . Energy Cannon 16 | . 2 5 1 . . . . . . . . . . . . . 4 . 1 1 . . . . . 1 . 1 . . Ballistic Gun 11 | 1 . . 2 . . . . . 1 . . . . . . . . . . . . . . . . 3 . 2 2 . Ballistic Cannon 6 | . . . 1 . . . . . . . . . . 3 . . . . . . . . . . . . 1 . . 1 Launcher 7 | . 2 . . . . . . . . . . 1 . . 1 . 1 . . . . . . . . 2 . . . . Special Weapon 2 | . . . . . . . . . . . . . . . . . 2 . . . . . . . . . . . . . Impact Weapon 1 | . . . . . . . . . . . . . . . . . . . . . . . . . . 1 . . . . Slashing Weapon 6 | . . . 1 1 . . . . 1 . . . . 1 . . . . . . . . . . . . 1 . . 1 Piercing Weapon 3 | . . . . . . . . . . . . 1 . . . . . . . . . . . . . 1 . 1 . . Special Melee Weapon . | . . . . . . . . . . . . . . . . . . . . . . . . . . . . . . . Unidentified Prototypes 59 | . . . 4 3 . . . . 2 . . 1 . 9 . . 6 . 7 . . . . 5 . 4 4 7 6 1 Corrupted Parts 4 | . . 1 . . . . . . . . . . 1 . . . . 2 . . . . . . . . . . . . System Corruption 11 | . . 1 . . . . . . . . . . 1 . . . . 9 . . . . . . . . . . . . Parts Lost 119 | . . 9 13 . . . . . . . . . 6 2 2 . . 1 10 . 2 . . . 1 23 11 7 8 24 Power 15 | . . 1 3 . . . . . . . . . 1 . . . . . . . 1 . . . . 1 1 2 1 4 Propulsion 48 | . . 4 6 . . . . . . . . . 1 1 . . . . 4 . 1 . . . 1 8 7 2 3 10 Utility 32 | . . . 1 . . . . . . . . . 4 1 1 . . . 2 . . . . . . 9 2 2 3 7 Weapon 24 | . . 4 3 . . . . . . . . . . . 1 . . 1 4 . . . . . . 5 1 1 1 3 Highest Loss Streak 18 | . . 5 10 . . . . . . . . . 4 1 1 . . 1 4 . 2 . . . 1 13 5 6 5 18 To Critical Strikes 1 | . . 1 . . . . . . . . . . . . . . . . . . . . . . . . . . . . Average Backups 14 | 2 9 15 15 9 10 9 10 10 9 9 10 9 8 10 14 15 22 22 20 19 18 19 20 20 21 17 3 3 3 3 Power 2 | . . 2 2 1 1 1 1 1 1 1 1 1 1 1 3 3 2 2 2 3 2 3 3 3 3 2 . . . . Propulsion 1 | 1 2 2 2 2 3 3 3 3 2 1 1 . . . . . . . 1 1 . 1 1 1 . . . . . . Utility 7 | . 3 5 6 3 4 4 5 5 4 7 8 8 7 6 10 10 11 10 9 10 11 11 12 12 13 10 2 2 2 2 Weapon 3 | . 2 4 3 1 1 1 1 1 1 . . . . 1 1 1 8 9 6 4 4 4 4 4 4 3 1 1 1 1 Tool/Special . | . . . . . . . . . . . . . . . . . . . . . . . . . . . . . . . Unused Backups 32 | . . 3 11 4 . 2 . . . . . . 1 . . . 4 1 1 . . . . . . 3 . . . 2 Power 4 | . . . 1 . . . . . . . . . 1 . . . . . . . . . . . . 1 . . . 1 Propulsion 3 | . . 2 1 . . . . . . . . . . . . . . . . . . . . . . . . . . . Utility 14 | . . . 6 3 . 1 . . . . . . . . . . 1 . 1 . . . . . . 1 . . . 1 Weapon 10 | . . 1 3 1 . . . . . . . . . . . . 3 1 . . . . . . . 1 . . . . Tool/Special 1 | . . . . . . 1 . . . . . . . . . . . . . . . . . . . . . . . . Average Slot Usage (%) 85 | . 98 83 92 93 92 92 92 92 91 99 99 99 93 87 81 82 76 75 81 93 90 93 94 93 93 75 48 63 74 64 Engine 3 | . 14 12 9 3 . . . . . . . . 1 1 . . . . . . . . . . . . . . . . Core 1 | . . . . 4 7 7 7 7 5 6 6 6 3 1 . . . . . . 1 . . . . . . 1 . . Reactor 4 | . . . . . . . . . . . . . . 7 11 11 5 5 7 10 11 15 15 14 15 11 1 3 4 3 Treads 3 | . 13 12 8 . . . . . . . . . 2 . . . . . . . . . . . . . . . . . Wheel 10 | . 14 12 20 . . . . . . . . . . 7 11 11 11 11 16 21 16 15 15 15 14 14 . . . . Flight 5 | . . . 4 30 30 30 30 30 26 26 26 26 12 . . . . . . . . . . . . . 7 8 17 21 Device 14 | . 1 . 11 14 15 15 15 15 12 13 13 13 13 25 18 23 23 23 22 21 16 20 21 20 21 16 7 6 10 9 Storage 6 | . 14 12 8 7 7 7 7 7 6 6 6 6 6 5 5 5 5 5 5 5 5 5 5 5 5 3 . . . . Processor 8 | . 12 12 3 6 7 7 7 7 6 6 6 6 6 . 4 5 5 5 10 15 16 15 15 15 15 10 7 12 5 4 Hackware 5 | . . . 2 15 15 15 15 15 25 26 25 25 20 4 . . . . . . . . . . . . 11 13 14 18 Protection 2 | . . . 6 . . . . . . . . . . 5 9 5 4 5 1 . 1 . . . . . . . 2 1 Energy Gun 4 | . . . 4 . . . . . . . . . 1 12 1 . . . 6 14 15 14 15 15 15 3 . . 1 . Energy Cannon 5 | . 25 17 5 . . . . . . . . . . . . . 4 15 4 . . . . . . . . . . . Ballistic Cannon 1 | . . . . . . . . . . . . . . 3 9 10 8 . . . . . . . . . 1 . . . Slashing Weapon 3 | . . . 2 7 7 7 7 7 5 12 13 8 6 1 5 5 3 . 4 4 5 5 5 5 5 3 2 2 . . Peak Build Rating 166 | 7 11 26 36 52 49 49 49 51 61 60 62 63 62 98 95 97 122 118 121 118 116 115 114 116 115 124 107 129 166 132 Average Rating 73 | 4 9 20 28 46 49 49 49 49 57 59 59 61 57 88 91 95 113 115 103 113 109 113 114 113 114 102 74 96 130 105 On Entrance 73 | . 7 11 26 36 49 49 49 49 49 57 60 57 62 62 94 95 97 118 114 106 113 114 114 114 115 115 45 63 120 121 Naked Turns . | . . . . . . . . . . . . . . . . . . . . . . . . . . . . . . . Heaviest Build 199 | 14 53 57 70 23 23 23 23 23 23 23 23 23 47 177 172 172 172 170 173 175 199 174 174 176 176 178 26 35 68 48 Greatest Support 88 | 16 20 16 88 24 23 23 23 23 23 23 28 23 70 70 56 56 56 56 56 52 60 54 54 54 60 82 73 36 70 60 Greatest Overweight (x) 51 | . 3 3 3 . . . . . . . . . 1 4 3 3 3 3 9 51 3 3 3 4 3 5 1 1 1 1 Average Overweight (x) 1 | . . 2 . . . . . . . . . . . 1 2 3 2 2 3 11 2 3 3 3 2 1 . . . . Largest Inventory Capacity 25 | 8 20 20 20 10 10 10 10 10 10 10 10 10 10 25 25 25 25 25 25 25 25 25 25 25 25 25 5 5 5 5 Average Capacity 18 | 6 11 19 18 10 10 10 10 10 10 10 10 10 10 15 25 25 25 25 25 25 25 25 25 25 25 21 5 5 5 5 Most Carried 25 | 3 14 20 20 10 10 10 10 10 10 10 10 10 10 17 17 19 25 25 25 25 25 25 25 25 24 25 5 5 5 5 Average Carried 15 | 2 10 15 15 9 10 9 10 10 9 9 10 9 9 11 15 16 24 24 23 24 23 24 25 24 23 19 4 4 4 4 Final Capacity 25 | 8 15 20 10 10 10 10 10 10 10 10 10 10 10 25 25 25 25 25 25 25 25 25 25 25 25 5 5 5 5 5 Final Carried 25 | 3 14 17 8 10 10 10 10 10 10 10 10 10 8 17 15 19 25 24 24 25 25 25 25 24 23 3 5 5 5 4 Class Distribution -------------------- 27% | Mutant 20% | Scavenger-Assassin 15% | Hacker-Scout 6% | Machinist-Mutant 4% | Machinist-Tank 4% | Hacker-Mutant 4% | Tank 3% | Hacker-Sprinter 3% | Scavenger-Mutant Dominant Class ---------------- Mutant | -10/Materials Mutant | -10/Subcaves Mutant | -8/Materials Hacker-Scout | -7/Factory Hacker-Scout | -7/Lower Caves Hacker-Scout | -7/Lower Caves Hacker-Scout | -7/Data Miner Hacker-Scout | -6/Proximity Caves Hacker-Scout | -6/Factory Hacker-Scout | -6/Lower Caves Hacker-Scout | -6/Lower Caves Hacker-Scout | -6/Zion Hacker-Scout | -5/Proximity Caves Machinist-Tank | -5/Factory Machinist-Mutant | -5/Upper Caves Machinist-Mutant | -5/Upper Caves Commander-Mutant | -5/Warlord Tank | -4/Proximity Caves Scavenger-Assassin | -4/Factory Scavenger-Assassin | -4/Waste Scavenger-Assassin | -4/Factory Scavenger-Assassin | -4/Upper Caves Scavenger-Assassin | -4/Upper Caves Scavenger-Assassin | -4/Zhirov Scavenger-Assassin | -3/Proximity Caves Scavenger-Assassin | -3/Research Hacker-Mutant | -2/Research Hacker-Mutant | -2/Testing Hacker-Sprinter | -1/Access Hacker-Sprinter | -1/Command Resources | -11 -10 -10 -8 -7 -7 -7 -7 -6 -6 -6 -6 -6 -5 -5 -5 -5 -5 -4 -4 -4 -4 -4 -4 -4 -3 -3 -2 -2 -1 -1 ----------- Run | Yrd Mat Sub Mat Fac Low Low Dat Pro Fac Low Low Zio Pro Fac Upp Upp War Pro Fac Was Fac Upp Upp Zhi Pro Res Res Tes Acc Com Matter Collected 6708 | 276 184 270 854 145 . . . 20 110 93 . 57 165 722 220 182 205 90 524 60 290 10 40 182 223 684 390 438 217 57 Remotely . | . . . . . . . . . . . . . . . . . . . . . . . . . . . . . . . Salvage Created 10073 | 114 605 696 1366 199 . . . . 206 . . . 66 481 126 217 593 1232 917 . 449 . . 182 30 1446 181 706 211 50 Parts 446 | 6 54 27 75 11 . . . . 12 . . . 6 23 . 9 20 39 37 . 11 . . 3 . 52 14 30 16 1 Haulers Intercepted 3 | . 1 . 2 . . . . . . . . . . . . . . . . . . . . . . . . . . . Recyclers Shooed 6 | . . . . . . . . . . . . . . 1 . . . . 1 . . . . . . 4 . . . . Parts Field Recycled . | . . . . . . . . . . . . . . . . . . . . . . . . . . . . . . . Retrieved Matter . | . . . . . . . . . . . . . . . . . . . . . . . . . . . . . . . Parts Self-Destructed 61 | . . 16 . . . . . . . . . . 17 . 2 9 . 4 . . . 1 2 2 8 . . . . . Prevented 42 | . . . . . . . . . . . . . 8 . . . . 34 . . . . . . . . . . . . Kills | -11 -10 -10 -8 -7 -7 -7 -7 -6 -6 -6 -6 -6 -5 -5 -5 -5 -5 -4 -4 -4 -4 -4 -4 -4 -3 -3 -2 -2 -1 -1 ------- Run | Yrd Mat Sub Mat Fac Low Low Dat Pro Fac Low Low Zio Pro Fac Upp Upp War Pro Fac Was Fac Upp Upp Zhi Pro Res Res Tes Acc Com Combat Hostiles Destroyed 165 | . 16 13 20 . . . . . . . . . 3 11 7 7 13 15 15 . 6 . . . 1 23 1 4 4 6 Melee 9 | . . . . . . . . . . . . . 3 . . 1 . . 1 . 2 . . . . . 1 . 1 . Guns 37 | . . . 3 . . . . . . . . . . 7 . . . . 6 . 1 . . . 1 12 . 4 3 . Cannons 56 | . 8 9 12 . . . . . . . . . . 3 4 3 6 7 4 . . . . . . . . . . . AOE 43 | . 7 . 3 . . . . . . . . . . . 3 3 5 1 4 . . . . . . 11 . . . 6 Classes Destroyed 23 | 2 7 2 3 . . . . . . . . . 1 2 1 . 2 1 . . 1 . . . . . . . . 1 Worker 15 | . 1 . 1 . . . . . . . . . . 1 . . . . 7 . . . . . . 4 1 . . . Builder 20 | . 4 . 2 2 . . . . . . . . . 2 . . . . 2 . . . . . . 3 2 3 . . Tunneler 2 | 1 . . . . . . . . . . . . . . . . . . 1 . . . . . . . . . . . Hauler 3 | . 1 . 2 . . . . . . . . . . . . . . . . . . . . . . . . . . . Recycler 14 | 1 . . 3 . . . . . 1 . . . . . . . . . 2 . . . . . . 5 . 2 . . Minesweeper 1 | . . . . . . . . . . . . . . . . . . 1 . . . . . . . . . . . . Mechanic 5 | . . . 1 3 . . . . . . . . . . . . . . . . . . . . . . . 1 . . Operator 7 | . 1 . 3 . . . . . 1 . . . . . . . . . . . . . . . . . 1 . 1 . Drone 1 | . . . . . . . . . . . . . 1 . . . . . . . . . . . . . . . . . Watcher 12 | . 3 . 1 2 . . . . 1 . . . . 1 . . . . . . 1 . . . . 1 1 1 . . Swarmer 38 | . 6 . . . . . . . . . . . 2 1 4 3 . 1 8 . . . . . 1 9 . . 3 . Cutter 6 | . . . . . . . . . . . . . . . . . . . . . . . . . . . . . . 6 Grunt 66 | . 10 . 13 . . . . . . . . . . 3 . 4 8 11 3 . . . . . . 13 1 . . . Brawler 2 | . . . 1 . . . . . . . . . . . 1 . . . . . . . . . . . . . . . Duelist 5 | . . . . . . . . . . . . . . . 1 . 1 2 1 . . . . . . . . . . . Protector 2 | . . . . . . . . . . . . . . . . . 2 . . . . . . . . . . . . . Sentry 14 | . . 1 5 . . . . . . . . . . 3 1 . . 1 . . 1 . . . . . . 1 1 . Hunter 5 | . . . . . . . . . . . . . . 2 . . . . 1 . 2 . . . . . . . . . Programmer 9 | . . . . . . . . . . . . . . 2 . . . . 2 . 2 . . . . 1 . 2 . . Heavy 1 | . . . 1 . . . . . . . . . . . . . . . . . . . . . . . . . . . Behemoth 1 | . . . . . . . . . . . . . . . . . . . . . 1 . . . . . . . . . Striker 3 | . . . . . . . . . . . . . . . . . 2 . . . . . . . . . . 1 . . Subdweller 12 | . . 12 . . . . . . . . . . . . . . . . . . . . . . . . . . . . Best Kill Streak 22 | 2 5 2 6 3 . . . . 1 . . . 2 3 4 4 9 3 8 . 2 . . . 1 22 1 4 3 6 Combat Bots Only 11 | . 3 2 5 . . . . . . . . . 2 3 4 4 9 3 4 . 2 . . . 1 11 1 2 3 6 Max Kills in Single Turn 5 | 1 2 1 3 1 . . . . 1 . . . 1 1 2 2 3 1 5 . 1 . . . 1 4 1 1 1 5 Gunslinging . | . . . . . . . . . . . . . . . . . . . . . . . . . . . . . . . Exploded 5 | . 2 . 3 . . . . . . . . . . . 2 2 3 1 2 . . . . . . 3 . . . 5 Melee 1 | . . . . . . . . . . . . . 1 . . 1 . . 1 . 1 . . . . . 1 . 1 . Uniques/NPCs Destroyed . | . . . . . . . . . . . . . . . . . . . . . . . . . . . . . . . Combat | -11 -10 -10 -8 -7 -7 -7 -7 -6 -6 -6 -6 -6 -5 -5 -5 -5 -5 -4 -4 -4 -4 -4 -4 -4 -3 -3 -2 -2 -1 -1 -------- Run | Yrd Mat Sub Mat Fac Low Low Dat Pro Fac Low Low Zio Pro Fac Upp Upp War Pro Fac Was Fac Upp Upp Zhi Pro Res Res Tes Acc Com Hostile Shots Fired 1735 | . 34 67 162 37 2 . . 22 41 2 9 . 41 82 43 26 33 84 155 . 77 4 . . 29 311 110 67 124 173 Missed 671 | . 13 20 32 27 2 . . 16 20 1 5 . 7 7 12 5 17 36 44 . 38 1 . . 13 135 59 29 45 87 Hits 1064 | . 21 47 130 10 . . . 6 21 1 4 . 34 75 31 21 16 48 111 . 39 3 . . 16 176 51 38 79 86 Melee 35 | . . . 10 . . . . . . . . . 3 . . . . . . . . . . . . . . 11 . 11 Projectile 1029 | . 21 47 120 10 . . . 6 21 1 4 . 31 75 31 21 16 48 111 . 39 3 . . 16 176 51 27 79 75 AOE 5 | . . 1 . . . . . . . . . . . . . . . . . . . . . . . . . . . 4 Critical Strikes 55 | . . 2 9 . . . . . . . . . 2 3 . . . 4 6 . 1 1 . . 1 11 3 3 2 7 Actively Blocked 17 | . . . . . . . . . . . . . . . . . . . 2 . . . . . . 5 1 1 1 7 Damage Taken 21167 | . 248 1041 2609 134 . 2 . 39 240 18 38 . 810 1381 509 356 172 571 1727 . 429 47 23 . 215 3735 1385 1257 1367 2814 Core 4979 | . 47 146 400 32 . . . 12 53 . 12 . 156 184 56 . . 48 217 . 75 . . . 36 1284 350 270 278 1323 Absorbed by Shields 1783 | . . . 20 . . . . . . . . . . 361 . . 163 271 272 . 21 44 22 . 204 405 . . . . Redirected to Shielding 333 | . . . . . . . . . . . . . . 38 63 . . . . . . . . . . 232 . . . . Ignored by Resistances 819 | . . . . . . . . . . . . . . 76 . . . 232 22 . 336 . . . . . . . 153 . Regen/Repaired (Parts) 1119 | . 148 . 175 . . . . . 81 . . . . 127 . . 148 . . . 302 . . . . 19 22 . 30 67 Core Remaining (%) 57 | 100 . 22 27 . . . . 93 . . . . 74 . . . . 71 . . . . . . 71 1 . 57 . . Volleys Fired 554 | 6 28 139 90 . . . . . . . . . . 45 19 5 17 30 40 . 17 1 1 . 3 57 14 29 10 3 Largest 3 | 2 2 2 2 . . . . . . . . . . 3 2 2 3 3 3 . 3 3 3 . 3 3 1 2 3 1 Hottest 266 | 70 112 112 160 . . . . . . . . . . 144 66 76 243 243 266 . 251 251 251 . 251 198 58 70 164 55 Shots Fired 962 | 12 52 150 147 . . . . . . . . . . 114 32 9 42 86 95 . 43 3 3 . 9 64 14 58 26 3 Gun 395 | 12 . . 59 . . . . . . . . . . 73 . . . 1 58 . 43 3 3 . 9 50 . 58 26 . Cannon 531 | . 45 150 86 . . . . . . . . . . 41 29 7 38 85 35 . . . . . . . 14 . . 1 Launcher 33 | . 7 . 2 . . . . . . . . . . . 3 2 1 . 2 . . . . . . 14 . . . 2 Special 3 | . . . . . . . . . . . . . . . . . 3 . . . . . . . . . . . . . Kinetic 234 | 6 . . 22 . . . . . . . . . . 41 29 7 . . . . . . . . . 44 14 58 12 1 Thermal 465 | 6 . 118 123 . . . . . . . . . . 73 . . . 1 70 . 43 3 3 . 9 6 . . 10 . Explosive 34 | . 7 . 2 . . . . . . . . . . . 3 2 4 . 2 . . . . . . 14 . . . . Electromagnetic 223 | . 45 32 . . . . . . . . . . . . . . 38 85 23 . . . . . . . . . . . Entropic 2 | . . . . . . . . . . . . . . . . . . . . . . . . . . . . . . 2 Phasic 4 | . . . . . . . . . . . . . . . . . . . . . . . . . . . . . 4 . Robot Hit Streak 49 | 3 10 49 24 . . . . . . . . . . 16 9 2 18 8 10 . 5 1 1 . 3 13 10 12 3 1 Robot Miss Streak 6 | 3 5 1 5 . . . . . . . . . . 4 5 1 6 3 5 . 2 2 3 . 3 2 1 5 4 3 Penetration Max 3 | . . . . . . . . . . . . . . . . . . . . . . . . . . 3 . 1 . . Secondary Targets 4 | . . . 1 . . . . . . . . . . . . . . . . . 1 . . . . . . 1 1 . Max Gunslinging Chain 1 | . . . 1 . . . . . . . . . . . . . . . . . 1 . . . . . . 1 1 . Shots Hit Robots 644 | 7 26 53 112 15 . . . . 4 . . . 12 85 14 6 27 48 57 . 38 1 1 3 4 50 16 45 16 4 Core Hits 357 | 3 27 14 46 6 . . . . 1 . . . 5 29 10 9 21 15 40 . 11 . . 2 4 79 5 15 8 7 Critical Kills 9 | . . 2 . . . . . . . . . . . . . . . . . . . . . . . 5 . 2 . . Critical Parts Destroyed 10 | . . . . . . . . . . . . . . . . . . . . . . . . . . 4 . 6 . . Critical Strikes 54 | . . 2 6 . . . . . . . . . 3 6 1 . . . 6 . 5 . . . 1 9 . 13 2 . Burn 19 | . . . 6 . . . . . . . . . . 4 . . . . 5 . 3 . . . 1 . . . . . Meltdown 2 | . . 2 . . . . . . . . . . . . . . . . . . . . . . . . . . . . Destroy 21 | . . . . . . . . . . . . . . . . . . . . . . . . . . 8 . 13 . . Blast 3 | . . . . . . . . . . . . . . 2 1 . . . . . . . . . . . . . . . Corrupt 1 | . . . . . . . . . . . . . . . . . . . 1 . . . . . . . . . . . Smash 1 | . . . . . . . . . . . . . . . . . . . . . . . . . . 1 . . . . Sever 5 | . . . . . . . . . . . . . 3 . . . . . . . 2 . . . . . . . . . Impale 2 | . . . . . . . . . . . . . . . . . . . . . . . . . . . . . 2 . Melee Attacks 332 | . . . 11 47 . 1 . . 39 5 4 2 16 8 . 4 . 6 33 . 21 . 1 3 3 23 22 13 27 43 Impact 3 | . . . . . . . . . . . . . . . . . . . . . . . . . . 3 . . . . Slashing 250 | . . . 11 47 . 1 . . 39 5 4 2 9 8 . 4 . 6 33 . 21 . 1 3 3 18 22 12 . 1 Piercing 79 | . . . . . . . . . . . . . 7 . . . . . . . . . . . . 2 . 1 27 42 Sneak Attacks 32 | . . . 3 6 . . . . 1 . . . 1 2 . . . 1 6 . . . . . . 2 3 5 1 1 Combat Hostiles 1 | . . . . . . . . . . . . . 1 . . . . . . . . . . . . . . . . . Follow-up Attacks 2 | . . . . . . . . . . . . . 1 . . . . . . . . . . . . 1 . . . . Damage Inflicted 31737 | 63 1388 1740 3776 851 . . . . 325 . . . 439 2767 804 541 2251 1871 3938 . 1223 31 52 279 103 5032 797 1875 547 1044 Guns 7085 | 63 . . 846 . . . . . . . . . . 1618 . . . . 974 . 769 31 52 . 103 1045 . 1256 328 . Cannons 9412 | . 619 1740 2060 . . . . . . . . . . 918 411 146 944 1701 621 . . . . . . . 252 . . . Explosions 9716 | . 769 . 602 . . . . . . . . . . . 393 358 1204 77 1804 . . . . . . 3624 . . . 885 Melee 5372 | . . . 262 851 . . . . 325 . . . 432 224 . 37 . 93 539 . 454 . . 279 . 363 545 619 198 151 Ramming 49 | . . . 6 . . . . . . . . . 7 7 . . . . . . . . . . . . . . 21 8 Kinetic 4338 | 26 . . 317 . . . . . . . . . . 918 411 146 . . . . . . . . . 920 252 1256 92 . Thermal 9641 | 37 157 1213 2589 . . . . . . . . . . 1618 . . . 77 2700 . 769 31 52 . 103 125 . . 170 . Explosive 7169 | . 612 . 602 . . . . . . . . . . . 393 358 1204 . 376 . . . . . . 3624 . . . . Electromagnetic 4114 | . 619 527 . . . . . . . . . . . . . . 944 1701 323 . . . . . . . . . . . Impact 120 | . . . . . . . . . . . . . . . . . . . . . . . . . . 120 . . . . Slashing 4750 | . . . 262 851 . . . . 325 . . . 329 224 . 37 103 93 539 . 454 . . 279 . 243 545 466 . . Piercing 605 | . . . . . . . . . . . . . 103 . . . . . . . . . . . . . . 153 198 151 Entropic 885 | . . . . . . . . . . . . . . . . . . . . . . . . . . . . . . 885 Phasic 66 | . . . . . . . . . . . . . . . . . . . . . . . . . . . . . 66 . Highest Corruption 10 | . . 1 1 1 1 1 1 1 1 1 1 2 7 2 . . . 9 4 4 4 . . . . 3 5 8 3 10 Average Corruption 2 | . . 1 1 1 1 1 1 1 1 1 1 1 5 1 . . . 8 2 4 4 . . . . 2 3 4 3 4 Corruption Purged 7 | . . . . . . . . . . . . . . 2 . . . . . . . . . . . . 5 . . . Corruption Blocked . | . . . . . . . . . . . . . . . . . . . . . . . . . . . . . . . Effects 164 | . . 23 11 5 . . 1 1 8 1 2 1 7 8 . . . . 26 17 21 . . . . 3 5 9 3 12 Message Errors 44 | . . 9 3 . . . . . 2 . . . 3 2 . . . . 8 6 6 . . . . . 2 1 . 2 Matter Fused 43 | . . 6 1 2 . . . . 1 1 1 . . 3 . . . . 7 5 4 . . . . . 3 4 2 3 Heat Flow Errors 20 | . . 2 4 1 . . . . 1 . 1 1 1 1 . . . . 4 1 2 . . . . . . . . 1 Energy Discharges 15 | . . 1 2 . . . 1 . 3 . . . . . . . . . 1 1 2 . . . . 1 . . 1 2 Parts Fused 1 | . . . . . . . . . . . . . . . . . . . . . . . . . . . . 1 . . Data Loss (minor) 26 | . . 3 1 1 . . . 1 1 . . . 2 . . . . . 3 4 4 . . . . 1 . 3 . 2 Data Loss (major) 6 | . . 1 . 1 . . . . . . . . 1 . . . . . 1 . 1 . . . . . . . . 1 Misfires 3 | . . . . . . . . . . . . . . 1 . . . . . . 1 . . . . 1 . . . . Alerts 2 | . . . . . . . . . . . . . . 1 . . . . 1 . . . . . . . . . . . Misdirections 1 | . . . . . . . . . . . . . . . . . . . . . . . . . . . . . . 1 Weapon Failures 3 | . . 1 . . . . . . . . . . . . . . . . 1 . 1 . . . . . . . . . Overload Shots . | . . . . . . . . . . . . . . . . . . . . . . . . . . . . . . . Overflow Damage 2186 | . 69 3 124 276 . . . . 119 . . . . 113 49 . 34 59 349 . 27 . . 110 . 187 148 281 136 102 Projectiles 232 | . 17 3 72 . . . . . . . . . . 16 32 . 1 6 42 . . . . . . . 43 . . . Explosions 482 | . 52 . 17 . . . . . . . . . . . 17 . 33 . 215 . . . . . . 79 . . . 69 Melee 1472 | . . . 35 276 . . . . 119 . . . . 97 . . . 53 92 . 27 . . 110 . 108 105 281 136 33 Knockbacks 15 | . . . 5 . . . . . . . . . . 5 2 . . . . . . . . . . 1 2 . . . Impact 1 | . . . . . . . . . . . . . . . . . . . . . . . . . . 1 . . . . Kinetic 12 | . . . 4 . . . . . . . . . . 4 2 . . . . . . . . . . . 2 . . . Secondary 2 | . . . 1 . . . . . . . . . . 1 . . . . . . . . . . . . . . . . Self-Inflicted Damage 540 | . 34 . 75 . . . . . . . . . . . . . . 68 . . . . . . . . . . 10 353 Shots 8 | . 2 . 3 . . . . . . . . . . . . . . 1 . . . . . . . . . . . 2 Rammed 3 | . . . 1 . . . . . . . . . . . . . . . . . . . . . . . . . 1 1 Targets Rammed 5 | . . . 1 . . . . . . . . . 1 1 . . . . . . . . . . . . . . 1 1 Kicked 2 | . . . . . . . . . . . . . 1 1 . . . . . . . . . . . . . . . . Crushed . | . . . . . . . . . . . . . . . . . . . . . . . . . . . . . . . Highest Temperature 571 | 100 249 229 443 94 . . . 7 189 . 273 87 220 378 . . 10 180 428 152 305 201 201 . 360 323 6 4 571 296 Average Temperature 102 | 45 75 21 151 31 . . . 4 87 . 130 40 117 96 . . 5 62 121 92 108 104 149 . 157 145 4 3 124 60 Received Heat Transfer 2891 | . 72 344 921 45 . . . 12 36 9 18 . 270 170 27 90 48 134 72 . 29 4 . . 10 301 144 63 36 36 Effects 23 | . . . 9 . . . . . . . . . . 4 . . . . 4 . 2 . . . 1 1 . . 1 1 Shutdowns 6 | . . . 3 . . . . . . . . . . 2 . . . . 1 . . . . . . . . . . . Energy Bleed 1 | . . . . . . . . . . . . . . . . . . . . . . . . . . . . . . 1 Interference 10 | . . . 3 . . . . . . . . . . 2 . . . . 2 . 2 . . . . 1 . . . . Short Circuit 1 | . . . . . . . . . . . . . . . . . . . . . . . . . . . . . 1 . Damage (minor) 2 | . . . . . . . . . . . . . . . . . . . 1 . . . . . 1 . . . . . Damage (major) 3 | . . . 3 . . . . . . . . . . . . . . . . . . . . . . . . . . . Siege Activations . | . . . . . . . . . . . . . . . . . . . . . . . . . . . . . . . Martial Activations . | . . . . . . . . . . . . . . . . . . . . . . . . . . . . . . . Shielding Activations . | . . . . . . . . . . . . . . . . . . . . . . . . . . . . . . . Robots Disrupted 1 | . . . . . . . . . . . . . . . . . 1 . . . . . . . . . . . . . Combat Hostiles 1 | . . . . . . . . . . . . . . . . . 1 . . . . . . . . . . . . . Robots Corrupted 13 | . 1 2 . . . . . . . . . . . . . . 2 7 . . . . . . . 1 . . . . Combat Hostiles 12 | . 1 2 . . . . . . . . . . . . . . 2 7 . . . . . . . . . . . . Parts Fried 36 | . 2 5 . . . . . . . . . . . . . . 9 16 2 . . . . . . 2 . . . . Impact Corruptions 3 | . . . . . . . . . . . . . . . . . . . . . . . . . . 3 . . . . Robots Melted 8 | . . 2 2 . . . . . . . . . . 1 . . . . . . 3 . . . . . . . . . Combat Hostiles 8 | . . 2 2 . . . . . . . . . . 1 . . . . . . 3 . . . . . . . . . Parts Melted 27 | . . 1 5 . . . . . . . . . . 8 . . . 1 7 . 5 . . . . . . . . . Heat Transferred 11692 | 111 200 . 3404 . . . . . . . . . . 3001 . . . 50 2570 . 1564 37 74 . 261 198 . . 222 . Parts Sabotaged . | . . . . . . . . . . . . . . . . . . . . . . . . . . . . . . . Parts Stolen . | . . . . . . . . . . . . . . . . . . . . . . . . . . . . . . . Parts Stripped . | . . . . . . . . . . . . . . . . . . . . . . . . . . . . . . . Power Chain Reactions 5 | . 2 . . . . . . . . . . . . . . . . 1 2 . . . . . . . . . . . Alert | -11 -10 -10 -8 -7 -7 -7 -7 -6 -6 -6 -6 -6 -5 -5 -5 -5 -5 -4 -4 -4 -4 -4 -4 -4 -3 -3 -2 -2 -1 -1 ------- Run | Yrd Mat Sub Mat Fac Low Low Dat Pro Fac Low Low Zio Pro Fac Upp Upp War Pro Fac Was Fac Upp Upp Zhi Pro Res Res Tes Acc Com Maximum Alert Level 4 | . 1 . 1 1 . . . . 1 . . . . 2 . . . . 3 1 . . . . . 4 4 3 2 3 Low Security (%) 49 | 100 52 . 97 84 . . . . 96 . . . . 14 . . . . 17 90 100 . . . . 23 . . . . Level 1 13 | . 47 . 2 15 . . . . 3 . . . . 40 . . . . . 9 . . . . . 17 . . . 8 Level 2 22 | . . . . . . . . . . . . . . 44 . . . . 72 . . . . . . 2 . . 100 51 Level 3 12 | . . . . . . . . . . . . . . . . . . . 10 . . . . . . 48 65 100 . 40 Level 4 1 | . . . . . . . . . . . . . . . . . . . . . . . . . . 7 34 . . . Level 5 . | . . . . . . . . . . . . . . . . . . . . . . . . . . . . . . . High Security . | . . . . . . . . . . . . . . . . . . . . . . . . . . . . . . . Max Security . | . . . . . . . . . . . . . . . . . . . . . . . . . . . . . . . Peak Influence 1427 | 10 300 . 203 245 . . . . 255 . . . . 614 . . . . 727 232 164 . . . . 1427 1414 819 659 956 Initial 802 | . . . . 69 . . . . 50 . . . . 316 . . . . 37 232 . . . . . 62 802 721 429 401 Average 333 | 1 149 . 136 118 . . . . 51 . . . . 384 . . . . 521 68 44 . . . . 614 1106 747 584 602 Influence Increases 12671 | 10 549 20 821 572 . . . 90 643 . . . 567 1180 170 140 355 380 1347 . 400 235 91 27 337 2031 941 255 519 991 Destroy 0b10 Robot/C 4700 | . 320 20 440 . . . . . . . . . 300 540 140 140 280 300 460 . 200 100 40 . 180 760 140 120 100 120 Destroy 0b10 Robot/NC 485 | 10 50 . 65 35 . . . . 15 . . . 10 50 . . 10 5 60 . 10 . . 15 . 70 35 40 5 . Destroy Leader 822 | . 78 . 126 4 . . . . 2 . . . 30 128 . . . 30 100 . 62 20 10 . 20 134 34 4 20 20 Allied During Kill 1426 | . . . 3 . . . . . . . . . 212 184 . . 65 15 43 . 84 115 41 12 137 367 118 25 5 . Successful Hack 287 | . 17 . 45 84 . . . . 65 . . . . 12 . . . . 20 . 2 . . . . . . 21 . 21 Select Force Hacks 30 | . 30 . . . . . . . . . . . . . . . . . . . . . . . . . . . . . Disable Machine 420 | . . . 45 15 . . . . 15 . . . . 30 . . . . 225 . 30 . . . . . 15 30 15 . Anti-Garrison Action 800 | . . . . . . . . . 200 . . . . . . . . . 150 . . . . . . . 200 . 200 50 Destroy Structure 1136 | . 54 . 37 29 . . . . 31 . . . . 86 . . . . 214 . 12 . . . . 130 129 15 69 330 Advance Influence 150 | . . . . . . . . . . . . . . 150 . . . . . . . . . . . . . . . . Partial Spotted 375 | . . . . 75 . . . . 75 . . . . . . . . . . . . . . . . 15 30 . 105 75 Lose Combat Pursuer 2040 | . . . 60 330 . . . 90 240 . . . 15 . 30 . . 30 75 . . . . . . 555 240 . . 375 Influence Decreases 11733 | 10 343 226 668 504 103 33 85 10 632 91 . . 302 837 548 234 220 592 743 663 294 262 79 118 244 697 1085 822 607 681 Entered New Map 3548 | . . 100 . 84 83 23 85 . 30 35 . . . 99 226 44 136 271 22 431 . 40 16 91 . 31 625 562 287 227 Time Decay 5868 | 10 343 126 498 354 20 10 . 10 293 56 . . 182 568 302 190 64 271 459 232 244 222 63 27 194 326 230 170 190 214 Lost Part 1090 | . . . 130 . . . . . . . . . 60 20 20 . . 10 100 . 10 . . . 10 230 110 70 80 240 Lost Ally 882 | . . . 40 10 . . . . 20 . . . 60 150 . . 20 40 162 . 40 . . . 40 110 120 20 50 . Purge Threat 345 | . . . . 56 . . . . 289 . . . . . . . . . . . . . . . . . . . . . Squads Dispatched 91 | . 3 . 12 9 . . . . 7 . . . . 11 . . . . 11 . 3 . . . . 12 7 2 3 11 Investigation 31 | . 2 . 5 5 . . . . 4 . . . . 3 . . . . 2 . 1 . . . . 2 3 . 2 2 Extermination 23 | . . . . 3 . . . . 2 . . . . 4 . . . . 2 . 2 . . . . 3 2 1 1 3 Reinforcement 25 | . 1 . 4 1 . . . . 1 . . . . 1 . . . . 2 . . . . . . 6 2 1 . 6 Assault 6 | . . . . . . . . . . . . . . . . . . . 5 . . . . . . 1 . . . . Garrison 6 | . . . 3 . . . . . . . . . . 3 . . . . . . . . . . . . . . . . Intercept . | . . . . . . . . . . . . . . . . . . . . . . . . . . . . . . . Searches Triggered . | . . . . . . . . . . . . . . . . . . . . . . . . . . . . . . . Data Miner Redirects 11 | . . . . . . . . . 3 . . . . . . . . . 3 . . . . . . 2 2 . . 1 Construction Impeded 5 | . . . 1 . . . . . . . . . . . . . . . 1 . . . . . . 2 1 . . . Haulers Reinforced . | . . . . . . . . . . . . . . . . . . . . . . . . . . . . . . . Active Scanning Responses . | . . . . . . . . . . . . . . . . . . . . . . . . . . . . . . . Cargo Convoy Interrupts . | . . . . . . . . . . . . . . . . . . . . . . . . . . . . . . . Stealth | -11 -10 -10 -8 -7 -7 -7 -7 -6 -6 -6 -6 -6 -5 -5 -5 -5 -5 -4 -4 -4 -4 -4 -4 -4 -3 -3 -2 -2 -1 -1 --------- Run | Yrd Mat Sub Mat Fac Low Low Dat Pro Fac Low Low Zio Pro Fac Upp Upp War Pro Fac Was Fac Upp Upp Zhi Pro Res Res Tes Acc Com Distress Signals 19 | . . . 1 1 . . . . . . . . 1 . . . . . 2 . . . . . . 5 3 2 4 . Communications Jammed . | . . . . . . . . . . . . . . . . . . . . . . . . . . . . . . . Distress Signals . | . . . . . . . . . . . . . . . . . . . . . . . . . . . . . . . Times Spotted 544 | . 17 16 34 28 3 . . 7 24 5 1 . 14 32 9 7 30 17 38 . 13 1 2 . 9 92 46 16 30 53 Peak Tracking Total 31 | . 3 2 6 8 3 . . 8 7 5 1 . 4 4 5 4 13 5 5 . 2 1 2 . 5 31 14 5 8 16 Tactical Retreats 66 | . . 1 3 9 . . . 2 7 . . . 1 . 2 . . 2 2 . . . . . . 8 11 2 7 9 Traps | -11 -10 -10 -8 -7 -7 -7 -7 -6 -6 -6 -6 -6 -5 -5 -5 -5 -5 -4 -4 -4 -4 -4 -4 -4 -3 -3 -2 -2 -1 -1 ------- Run | Yrd Mat Sub Mat Fac Low Low Dat Pro Fac Low Low Zio Pro Fac Upp Upp War Pro Fac Was Fac Upp Upp Zhi Pro Res Res Tes Acc Com Traps Triggered 12 | . 2 1 . 2 . . . . 2 . . . . 1 . . . . 2 . . . . . . 1 1 . . . Indirectly . | . . . . . . . . . . . . . . . . . . . . . . . . . . . . . . . Trap Hack Attempts . | . . . . . . . . . . . . . . . . . . . . . . . . . . . . . . . Triggered . | . . . . . . . . . . . . . . . . . . . . . . . . . . . . . . . Disarmed . | . . . . . . . . . . . . . . . . . . . . . . . . . . . . . . . Reprogrammed . | . . . . . . . . . . . . . . . . . . . . . . . . . . . . . . . Reused . | . . . . . . . . . . . . . . . . . . . . . . . . . . . . . . . Traps Extracted . | . . . . . . . . . . . . . . . . . . . . . . . . . . . . . . . Installed 1 | . . . . . . . . . . . . . . . . . . 1 . . . . . . . . . . . . Triggered . | . . . . . . . . . . . . . . . . . . . . . . . . . . . . . . . Machines | -11 -10 -10 -8 -7 -7 -7 -7 -6 -6 -6 -6 -6 -5 -5 -5 -5 -5 -4 -4 -4 -4 -4 -4 -4 -3 -3 -2 -2 -1 -1 ---------- Run | Yrd Mat Sub Mat Fac Low Low Dat Pro Fac Low Low Zio Pro Fac Upp Upp War Pro Fac Was Fac Upp Upp Zhi Pro Res Res Tes Acc Com Machines Disabled 35 | . . 1 3 1 . . . . 1 1 . . . 2 . 1 . . 16 . 2 . . . . . 1 2 1 3 Max in Single Turn 13 | . . 1 2 1 . . . . 1 1 . . . . . 1 . . 13 . 1 . . . . . 1 1 1 2 Garrison Access 9 | . . . . 1 . . . . 1 . . . . 1 . . . . 2 . . . . . . . 1 . 3 . Phase Generator 1 | . . . . . . . . . . . . . . . . . . . . . . . . . . . . . . 1 Machines Repaired . | . . . . . . . . . . . . . . . . . . . . . . . . . . . . . . . Machines Dismantled . | . . . . . . . . . . . . . . . . . . . . . . . . . . . . . . . Machines Sabotaged . | . . . . . . . . . . . . . . . . . . . . . . . . . . . . . . . Overloaded Fab Kills . | . . . . . . . . . . . . . . . . . . . . . . . . . . . . . . . Hacking | -11 -10 -10 -8 -7 -7 -7 -7 -6 -6 -6 -6 -6 -5 -5 -5 -5 -5 -4 -4 -4 -4 -4 -4 -4 -3 -3 -2 -2 -1 -1 --------- Run | Yrd Mat Sub Mat Fac Low Low Dat Pro Fac Low Low Zio Pro Fac Upp Upp War Pro Fac Was Fac Upp Upp Zhi Pro Res Res Tes Acc Com Machines Accessed 103 | . 9 2 13 19 . . 4 . 23 . 1 1 . 4 . 1 2 . 3 . 3 1 . 4 . 1 4 1 4 3 Terminals 45 | . 7 . 9 13 . . . . 15 . . . . . . 1 . . . . . . . . . . . . . . Fabricators 12 | . . . . 2 . . . . 4 . . . . 3 . . . . . . 2 . . . . . 1 . . . Repair Stations 13 | . 1 . 1 . . . . . 2 . . . . . . . . . 1 . 1 . . . . 1 1 1 1 3 Recycling Units 3 | . 1 . . 1 . . . . 1 . . . . . . . . . . . . . . . . . . . . . Scanalyzers 5 | . . . 2 2 . . . . . . . . . . . . . . 1 . . . . . . . . . . . Garrison Access 10 | . . . 1 1 . . . . 1 . . . . 1 . . . . 1 . . . . . . . 2 . 3 . Total Hacks 331 | . 32 6 45 47 . . 29 . 77 . 1 3 . 17 . 4 5 . 10 . 9 6 . 17 . 2 11 1 6 3 Successful 240 | . 19 6 28 30 . . 29 . 56 . 1 3 . 13 . 4 5 . 6 . 6 6 . 17 . 1 2 1 4 3 Failed 88 | . 12 . 16 17 . . . . 20 . . . . 4 . . . . 4 . 3 . . . . 1 9 . 2 . Catastrophic 9 | . 2 . . 2 . . . . 4 . . . . 1 . . . . . . . . . . . . . . . . Database Lockouts 3 | . 1 . 1 . . . . . 1 . . . . . . . . . . . . . . . . . . . . . Manual 287 | . 24 . 26 33 . . . . 57 . . . . 9 . . 1 . 32 . 18 . . . . 8 31 3 18 27 Terminals 154 | . 24 . 32 36 . . . . 58 . . . . . . 4 . . . . . . . . . . . . . . Fabricators 37 | . . . . 3 . . . . 10 . . . . 16 . . . . . . 4 . . . . . 4 . . . Repair Stations 32 | . 7 . 2 . . . . . 5 . . . . . . . . . 3 . 5 . . . . 2 3 1 1 3 Recycling Units 5 | . 1 . . 2 . . . . 2 . . . . . . . . . . . . . . . . . . . . . Scanalyzers 20 | . . . 10 5 . . . . . . . . . . . . . . 5 . . . . . . . . . . . Garrison Access 16 | . . . 1 1 . . . . 2 . . . . 1 . . . . 2 . . . . . . . 4 . 5 . Terminal Hacks 113 | . 4 6 8 10 . . 29 . 20 . 1 3 . . . 4 5 . . . . 6 . 17 . . . . . . Record 35 | . . 5 . . . . 11 . . . . . . . . 4 4 . . . . 6 . 5 . . . . . . Part Schematic 23 | . . . . 2 . . 11 . 3 . . 3 . . . . . . . . . . . 4 . . . . . . Robot Schematic 7 | . . . 2 1 . . 4 . . . . . . . . . . . . . . . . . . . . . . . Robot Analysis 11 | . 1 . 3 2 . . . . 1 . . . . . . . . . . . . . . 4 . . . . . . Prototype ID Bank 8 | . . . . . . . 3 . 1 . . . . . . . . . . . . . . 4 . . . . . . Open Door 2 | . . . . . . . . . . . 1 . . . . . 1 . . . . . . . . . . . . . Branch Access Points 1 | . . . . . . . . . 1 . . . . . . . . . . . . . . . . . . . . . Emergency Access Points 1 | . . . 1 . . . . . . . . . . . . . . . . . . . . . . . . . . . Terminal Index 3 | . 1 . . 1 . . . . 1 . . . . . . . . . . . . . . . . . . . . . Repair Station Index 1 | . . . . 1 . . . . . . . . . . . . . . . . . . . . . . . . . . Garrison Index 1 | . . . . . . . . . 1 . . . . . . . . . . . . . . . . . . . . . Alert Level 1 | . . . . . . . . . 1 . . . . . . . . . . . . . . . . . . . . . Unreport Threat 5 | . . . . 1 . . . . 4 . . . . . . . . . . . . . . . . . . . . . Locate Traps 1 | . . . . . . . . . 1 . . . . . . . . . . . . . . . . . . . . . Recall Extermination 2 | . . . . . . . . . 2 . . . . . . . . . . . . . . . . . . . . . Registered Prototypes 1 | . . . . . . . . . 1 . . . . . . . . . . . . . . . . . . . . . Zone Layout 9 | . 2 . 2 2 . . . . 3 . . . . . . . . . . . . . . . . . . . . . Proto ID Catalog 1 | . . 1 . . . . . . . . . . . . . . . . . . . . . . . . . . . . Fabricator Hacks 18 | . . . . 1 . . . . 5 . . . . 10 . . . . . . 2 . . . . . . . . . Load Schematic 12 | . . . . 1 . . . . 4 . . . . 6 . . . . . . 1 . . . . . . . . . Build 6 | . . . . . . . . . 1 . . . . 4 . . . . . . 1 . . . . . . . . . Repair Station Hacks 18 | . 6 . 2 . . . . . 5 . . . . . . . . . 1 . 2 . . . . . . 1 . 1 Scan Component 9 | . 3 . 1 . . . . . 3 . . . . . . . . . 1 . 1 . . . . . . . . . Repair 7 | . 3 . 1 . . . . . 2 . . . . . . . . . . . 1 . . . . . . . . . Refit 2 | . . . . . . . . . . . . . . . . . . . . . . . . . . . . 1 . 1 Recycling Unit Hacks . | . . . . . . . . . . . . . . . . . . . . . . . . . . . . . . . Scanalyzer 13 | . . . 5 4 . . . . . . . . . . . . . . 4 . . . . . . . . . . . Insert Component 8 | . . . 3 3 . . . . . . . . . . . . . . 2 . . . . . . . . . . . Analyze 5 | . . . 2 1 . . . . . . . . . . . . . . 2 . . . . . . . . . . . Garrison Access Hacks 5 | . . . . 1 . . . . . . . . . 1 . . . . 1 . . . . . . . . . 2 . Seal Access 5 | . . . . 1 . . . . . . . . . 1 . . . . 1 . . . . . . . . . 2 . Unauthorized Hacks 73 | . 9 . 13 14 . . . . 26 . . . . 2 . . . . . . 2 . . . . 1 2 . 2 2 Terminals 52 | . 8 . 12 11 . . . . 21 . . . . . . . . . . . . . . . . . . . . . Track 2 | . . . . 1 . . . . 1 . . . . . . . . . . . . . . . . . . . . . Assimilate 6 | . . . . 2 . . . . 4 . . . . . . . . . . . . . . . . . . . . . Botnet 20 | . 3 . 5 3 . . . . 9 . . . . . . . . . . . . . . . . . . . . . Disrupt 1 | . . . . . . . . . 1 . . . . . . . . . . . . . . . . . . . . . Skim 22 | . 5 . 6 5 . . . . 6 . . . . . . . . . . . . . . . . . . . . . Search 1 | . . . 1 . . . . . . . . . . . . . . . . . . . . . . . . . . . Fabricators 10 | . . . . 2 . . . . 4 . . . . 2 . . . . . . 2 . . . . . . . . . Prioritize 3 | . . . . . . . . . 1 . . . . 1 . . . . . . 1 . . . . . . . . . Liberate 1 | . . . . . . . . . . . . . . . . . . . . . 1 . . . . . . . . . Recompile 6 | . . . . 2 . . . . 3 . . . . 1 . . . . . . . . . . . . . . . . Repair Stations 5 | . . . . . . . . . . . . . . . . . . . . . . . . . . 1 1 . 1 2 Patch 5 | . . . . . . . . . . . . . . . . . . . . . . . . . . 1 1 . 1 2 Recycling Units 2 | . 1 . . 1 . . . . . . . . . . . . . . . . . . . . . . . . . . Mask 1 | . . . . 1 . . . . . . . . . . . . . . . . . . . . . . . . . . Tunnel 1 | . 1 . . . . . . . . . . . . . . . . . . . . . . . . . . . . . Scanalyzers . | . . . . . . . . . . . . . . . . . . . . . . . . . . . . . . . Garrison Access 4 | . . . 1 . . . . . 1 . . . . . . . . . . . . . . . . . 1 . 1 . Reprogram 1 | . . . 1 . . . . . . . . . . . . . . . . . . . . . . . . . . . Jam 3 | . . . . . . . . . 1 . . . . . . . . . . . . . . . . . 1 . 1 . Data Cores Recovered 3 | . . . 1 . . . . . 1 . . . . . . . . . . . 1 . . . . . . . . . Used 1 | . . . . . . . . . 1 . . . . . . . . . . . . . . . . . . . . . Hacking Detections 59 | . 8 . 8 16 . . . . 18 . . . . 2 . . . . 2 . 2 . . . . . 2 . 1 . Full Trace Events 9 | . 1 . 2 2 . . . . . . . . . 1 . . . . 1 . 1 . . . . . 1 . . . Feedback Events . | . . . . . . . . . . . . . . . . . . . . . . . . . . . . . . . Feedback Blocked . | . . . . . . . . . . . . . . . . . . . . . . . . . . . . . . . Robot Schematics Acquired 12 | . . . 2 1 . . 4 . . . . 2 . . . . . . . . . . . . . . . . . 3 Robots Built 3 | . . . . . . . . . . . . . . 2 . . . . . . 1 . . . . . . . . . Authchips 3 | . . . . . . . . . . . . . . 2 . . . . . . 1 . . . . . . . . . Time 174 | . . . . . . . . . . . . . . 58 . . . . . . 116 . . . . . . . . . Total Robot Build Rating 9 | . . . . . . . . . . . . . . 6 . . . . . . 3 . . . . . . . . . Part Schematics Acquired 69 | . . . 2 3 . . 11 . 3 . . 18 . . . . . . 16 . . . . 4 . . . . . 12 Parts Built 6 | . . . . . . . . . 2 . . . . 4 . . . . . . . . . . . . . . . . Authchips 3 | . . . . . . . . . 1 . . . . 2 . . . . . . . . . . . . . . . . Time 79 | . . . . . . . . . 29 . . . . 50 . . . . . . . . . . . . . . . . Total Part Build Rating 36 | . . . . . . . . . 14 . . . . 22 . . . . . . . . . . . . . . . . Parts Repaired 7 | . 3 . 1 . . . . . 2 . . . . . . . . . . . 1 . . . . . . . . . Time 210 | . 90 . 32 . . . . . 44 . . . . . . . . . . . 44 . . . . . . . . . Parts Recycled . | . . . . . . . . . . . . . . . . . . . . . . . . . . . . . . . Recycled Matter . | . . . . . . . . . . . . . . . . . . . . . . . . . . . . . . . Retrieved Matter . | . . . . . . . . . . . . . . . . . . . . . . . . . . . . . . . Retrieved Components . | . . . . . . . . . . . . . . . . . . . . . . . . . . . . . . . Parts Scanalyzed 6 | . . . 3 1 . . . . . . . . . . . . . . 2 . . . . . . . . . . . Part Schematics Acquired 5 | . . . 2 1 . . . . . . . . . . . . . . 2 . . . . . . . . . . . Parts Damaged 3 | . . . 1 1 . . . . . . . . . . . . . . 1 . . . . . . . . . . . Bothacking | -11 -10 -10 -8 -7 -7 -7 -7 -6 -6 -6 -6 -6 -5 -5 -5 -5 -5 -4 -4 -4 -4 -4 -4 -4 -3 -3 -2 -2 -1 -1 ------------ Run | Yrd Mat Sub Mat Fac Low Low Dat Pro Fac Low Low Zio Pro Fac Upp Upp War Pro Fac Was Fac Upp Upp Zhi Pro Res Res Tes Acc Com Used RIF Installer . | . . . . . . . . . . . . . . . . . . . . . . . . . . . . . . . Robots Hacked . | . . . . . . . . . . . . . . . . . . . . . . . . . . . . . . . Non-combat . | . . . . . . . . . . . . . . . . . . . . . . . . . . . . . . . Combat . | . . . . . . . . . . . . . . . . . . . . . . . . . . . . . . . Robot Hacks Applied . | . . . . . . . . . . . . . . . . . . . . . . . . . . . . . . . Relay Couplers Released 6 | . . . . . . . . . . . . . . . . . . . 2 . . . . . . 4 . . . . Machine Destruction 2 | . . . . . . . . . . . . . . . . . . . 2 . . . . . . . . . . . Programmers 4 | . . . . . . . . . . . . . . . . . . . . . . . . . . 4 . . . . Fabnet Peak Effective % . | . . . . . . . . . . . . . . . . . . . . . . . . . . . . . . . Robots Rewired 7 | . . . . . . . . . . . . . . . . . 5 1 . . . . . . . . . 1 . . Allies Hacked 6 | . . . . . . . . . . . . . . 2 . . . . 1 . 1 . . . . 1 1 . . . Hacks Repelled . | . . . . . . . . . . . . . . . . . . . . . . . . . . . . . . . Allies | -11 -10 -10 -8 -7 -7 -7 -7 -6 -6 -6 -6 -6 -5 -5 -5 -5 -5 -4 -4 -4 -4 -4 -4 -4 -3 -3 -2 -2 -1 -1 -------- Run | Yrd Mat Sub Mat Fac Low Low Dat Pro Fac Low Low Zio Pro Fac Upp Upp War Pro Fac Was Fac Upp Upp Zhi Pro Res Res Tes Acc Com Total Allies 69 | . . . 2 1 . . . . 4 . . 8 . 6 . . 5 1 8 . 11 2 . . . 5 7 1 8 . Largest Group 11 | . . . 2 1 . . . . 2 1 . 8 8 6 . . 5 4 3 . 9 11 8 7 7 9 5 1 3 . Highest-Rated Group 705 | . . . 32 26 . . . . 36 10 . 273 273 295 . . 284 241 288 . 522 614 475 452 452 530 705 112 379 . Highest-Rated Ally 269 | . . . 16 26 . . . . 26 10 . 40 40 70 . . 64 64 103 . 96 96 96 96 96 96 269 112 135 . Zionite Dispatches 18 | . . . . . . . . . . . . . . 2 . . . . 4 . 2 . . . . 2 4 . 4 . Heavy 4 | . . . . . . . . . . . . . . . . . . . 2 . . . . . . . 1 . 1 . Light 3 | . . . . . . . . . . . . . . 1 . . . . 1 . 1 . . . . . . . . . Fire 2 | . . . . . . . . . . . . . . . . . . . . . 1 . . . . 1 . . . . Experimental 1 | . . . . . . . . . . . . . . . . . . . . . . . . . . . 1 . . . Thermal Resupply 1 | . . . . . . . . . . . . . . 1 . . . . . . . . . . . . . . . . Kinetic Resupply 1 | . . . . . . . . . . . . . . . . . . . . . . . . . . . . . 1 . Explosive Resupply 1 | . . . . . . . . . . . . . . . . . . . . . . . . . . 1 . . . . Melee Resupply 1 | . . . . . . . . . . . . . . . . . . . . . . . . . . . 1 . . . Infowar Resupply 2 | . . . . . . . . . . . . . . . . . . . 1 . . . . . . . . . 1 . Hacking Resupply 1 | . . . . . . . . . . . . . . . . . . . . . . . . . . . 1 . . . Zionite Resupply 1 | . . . . . . . . . . . . . . . . . . . . . . . . . . . . . 1 . Total Orders 24 | . . . . . . . . 1 . . . . . 7 . . . 6 1 . 3 . . . . 1 3 . 2 . STAY 2 | . . . . . . . . . . . . . . . . . . . . . 1 . . . . . 1 . . . ROAM 1 | . . . . . . . . . . . . . . 1 . . . . . . . . . . . . . . . . FOLLOW 1 | . . . . . . . . . . . . . . 1 . . . . . . . . . . . . . . . . AID 5 | . . . . . . . . . . . . . . 3 . . . . . . 2 . . . . . . . . . DROP 7 | . . . . . . . . . . . . . . 1 . . . . 1 . . . . . . 1 2 . 2 . COLLECT 1 | . . . . . . . . . . . . . . 1 . . . . . . . . . . . . . . . . EXPLORE 7 | . . . . . . . . 1 . . . . . . . . . 6 . . . . . . . . . . . . Ally Attacks 504 | . . . 15 . . . . . . . . . 70 140 . . 27 5 40 . 30 15 9 . 34 67 33 16 3 . Total Damage 17672 | . . . 131 . . . . . . . . . 1417 3001 . . 740 118 2769 . 817 491 353 . 1091 2434 3415 697 198 . Kills 98 | . . . 2 . . . . . . . . . 14 23 . . 3 . 8 . 5 5 2 . 8 16 8 3 1 . Allies Corrupted 5 | . . . . . . . . . . . . . . . . . . . 2 . . . . . . 1 2 . . . Allies Melted 1 | . . . . . . . . . . . . . . . . . . 1 . . . . . . . . . . . . Intel | -11 -10 -10 -8 -7 -7 -7 -7 -6 -6 -6 -6 -6 -5 -5 -5 -5 -5 -4 -4 -4 -4 -4 -4 -4 -3 -3 -2 -2 -1 -1 ------- Run | Yrd Mat Sub Mat Fac Low Low Dat Pro Fac Low Low Zio Pro Fac Upp Upp War Pro Fac Was Fac Upp Upp Zhi Pro Res Res Tes Acc Com Active Infowar (turns) 12755 | 16 113 . 54 827 51 39 21 94 807 295 251 711 272 . 678 388 1081 488 1583 828 844 474 249 245 458 594 193 359 384 358 Optics 727 | . . . . . . . . . . . . . . . . . . . . . . . . . . . 72 312 343 . Sensors 11594 | . . . . 775 51 39 21 76 802 295 251 711 202 . 678 388 1081 488 1576 828 737 470 249 209 458 594 . 175 82 358 Terrain 4476 | . . . . . . . . . . . . . . . 125 . . . 795 828 745 474 249 245 458 364 92 101 . . Structural 3859 | . . . 54 817 51 39 21 94 775 295 251 711 272 . . . . . 479 . . . . . . . . . . . Seismic 129 | 16 113 . . . . . . . . . . . . . . . . . . . . . . . . . . . . . Decoding 2496 | . . . . . . . . . . . . . . . . . . . 814 828 844 10 . . . . . . . . Cloaking 1681 | . . . . . . . . . . . . . . . . . . . 296 828 303 . . . . 23 . . . 231 ECM 909 | . . . . 8 . . . . . . . . . . . . . . 1 . . . . . . . 170 139 379 212 Robot Analysis Total 11 | . 1 . 3 2 . . . . 1 . . . . . . . . . . . . . . 4 . . . . . . Derelict Logs Recovered 16 | . . 1 . . 2 1 . . . 2 2 1 2 . 1 1 . 1 . . . 2 . . . . . . . . Drone Launches 8 | . . . . . . . . 2 . . . . . . . . . 6 . . . . . . . . . . . . Drone Recoveries 3 | . . . . . . . . . . . . . . . . . . 3 . . . . . . . . . . . . Decoded 0b10 Intel 48 | . . . . . . . . . . . . . . . . . . . 21 4 23 . . . . . . . . . Traps 5 | . . . . . . . . . . . . . . . . . . . 2 . 3 . . . . . . . . . Emergency Access 2 | . . . . . . . . . . . . . . . . . . . . . 2 . . . . . . . . . Items 33 | . . . . . . . . . . . . . . . . . . . 16 4 13 . . . . . . . . . Machines 4 | . . . . . . . . . . . . . . . . . . . 1 . 3 . . . . . . . . . Guards 3 | . . . . . . . . . . . . . . . . . . . 1 . 2 . . . . . . . . . Exits 1 | . . . . . . . . . . . . . . . . . . . 1 . . . . . . . . . . . Zionite Intel Received 18 | . . . . . . . . . . . . . . . . . . . 5 . 3 . . . . . 2 . 1 7 Emergency Access 2 | . . . . . . . . . . . . . . . . . . . 1 . . . . . . . . . . 1 Component Stockpiles 2 | . . . . . . . . . . . . . . . . . . . . . 1 . . . . . . . . 1 Prototype Stockpiles 1 | . . . . . . . . . . . . . . . . . . . . . . . . . . . 1 . . . Component Schematics 1 | . . . . . . . . . . . . . . . . . . . 1 . . . . . . . . . . . Prototype Schematics 1 | . . . . . . . . . . . . . . . . . . . . . . . . . . . . . . 1 Unaware Schematics 1 | . . . . . . . . . . . . . . . . . . . . . . . . . . . . . . 1 Unaware Analyses 4 | . . . . . . . . . . . . . . . . . . . 1 . . . . . . . . . 1 2 Active Terminals 3 | . . . . . . . . . . . . . . . . . . . 1 . 1 . . . . . 1 . . . Active Garrisons 3 | . . . . . . . . . . . . . . . . . . . 1 . 1 . . . . . . . . 1 Exploration | -11 -10 -10 -8 -7 -7 -7 -7 -6 -6 -6 -6 -6 -5 -5 -5 -5 -5 -4 -4 -4 -4 -4 -4 -4 -3 -3 -2 -2 -1 -1 ------------- Run | Yrd Mat Sub Mat Fac Low Low Dat Pro Fac Low Low Zio Pro Fac Upp Upp War Pro Fac Was Fac Upp Upp Zhi Pro Res Res Tes Acc Com Turns Passed 21314 | 72 934 3282 1354 827 51 39 21 94 807 295 251 711 455 1710 678 388 1201 1068 1583 828 844 474 249 245 458 723 485 359 384 444 Spaces Moved 19402 | 44 540 1876 1081 2109 137 122 79 275 1682 469 369 1022 447 923 396 243 780 628 869 137 456 305 167 154 267 513 814 498 728 1272 Core 155 | 4 . . 3 . . . . . . . . . . . . . . . . 26 . . . . . 7 . . . 115 Treads 153 | . 102 . 19 . . . . . . . . . 32 . . . . . . . . . . . . . . . . . Legs 314 | . . . . . . . . . . . . . 105 209 . . . . . . . . . . . . . . . . Wheels 8431 | 40 438 1876 664 . . . . . . . . . . 714 396 243 780 628 869 111 456 305 167 154 267 323 . . . . Hover 556 | . . . . . . . . . . . . . . . . . . . . . . . . . . . 126 235 195 . Flight 9793 | . . . 395 2109 137 122 79 275 1682 469 369 1022 310 . . . . . . . . . . . . 183 688 263 533 1157 Fastest Speed 14 | 50 100 100 31 26 26 26 26 26 26 27 20 27 27 115 130 145 130 130 130 120 120 138 138 123 130 30 38 19 18 14 Average Speed 80 | 95 124 143 82 26 26 26 26 26 26 27 26 27 59 136 140 145 133 140 137 596 130 138 138 137 132 93 41 38 27 21 Slowest Speed 2600 | 100 160 145 145 31 26 26 26 26 27 27 27 27 190 190 145 145 145 145 235 2600 138 138 138 150 145 175 160 131 151 100 Overloaded Moves 10 | . . . . . . . . . . . 10 . . . . . . . . . . . . . . . . . . . Propulsion Burnouts . | . . . . . . . . . . . . . . . . . . . . . . . . . . . . . . . Robots Hopped 123 | . . . 2 12 3 . . 1 5 . . . . 1 . . . . . . . . . . . 17 17 7 9 49 Potential Cave-ins 4 | . . . . . . . . . . . . . . . 2 . . . 2 . . . . . . . . . . . Cave-ins Triggered . | . . . . . . . . . . . . . . . . . . . . . . . . . . . . . . . Teleports 1 | . . . . . . . . . . . . . . . . . . . . . . . . . . 1 . . . . Exploration Rate (%) 53 | 4 94 94 96 62 29 38 69 45 45 72 53 88 52 25 60 42 88 88 31 82 14 57 39 60 57 25 28 48 21 42 Regions Visited 30 Branch Regions 19 Pre-discovered Areas 14 | . 2 2 2 1 . . 1 . 1 . . . 1 . . . . . . . . 1 . 3 . . . . . . Known Exits Taken 24 | . . 1 1 1 1 1 1 1 1 1 1 1 1 1 1 1 1 1 . . 1 1 1 1 1 . 1 . 1 . Unknown Exits Taken 4 | 1 1 . . . . . . . . . . . . . . . . . . . . . . . . 1 . 1 . . Scrap Searched 30 | . . 6 . . 1 2 . 3 . 2 2 4 1 . 1 2 . 3 . . . . 3 . . . . . . . Spaces Dug 251 | . . 28 6 29 . 1 . . 31 4 4 . . 13 3 1 . 5 30 . 6 . 1 . 3 11 15 3 19 38 Terrain Destroyed 763 | . 61 48 35 29 . 1 . . 31 4 4 . . 20 56 22 59 21 121 . 6 . 1 . 3 66 16 3 20 136 Melee 199 | . . . 6 29 . 1 . . 31 4 4 . . 5 . 1 . 5 23 . 6 . 1 . 3 11 9 3 19 38 Projectile 114 | . . 48 13 . . . . . . . . . . 15 18 3 . . 10 . . . . . . . 7 . . . AOE 449 | . 61 . 16 . . . . . . . . . . . 38 18 59 16 88 . . . . . . 55 . . . 98 Terrain Rammed . | . . . . . . . . . . . . . . . . . . . . . . . . . . . . . . . Walls Destroyed . | . . . . . . . . . . . . . . . . . . . . . . . . . . . . . . . Machines Disabled . | . . . . . . . . . . . . . . . . . . . . . . . . . . . . . . . Actions | -11 -10 -10 -8 -7 -7 -7 -7 -6 -6 -6 -6 -6 -5 -5 -5 -5 -5 -4 -4 -4 -4 -4 -4 -4 -3 -3 -2 -2 -1 -1 --------- Run | Yrd Mat Sub Mat Fac Low Low Dat Pro Fac Low Low Zio Pro Fac Upp Upp War Pro Fac Was Fac Upp Upp Zhi Pro Res Res Tes Acc Com Total 23508 | 59 745 2325 1370 2282 148 127 78 295 1966 629 514 1454 611 1261 483 261 914 738 1112 146 632 356 181 181 360 641 900 584 830 1325 Wait 2442 | . 143 263 74 103 15 1 . 18 199 154 139 419 123 190 60 4 45 44 89 . 101 41 13 3 87 16 35 8 25 30 Move 19153 | 43 539 1875 1076 2086 130 121 78 272 1671 468 368 1021 446 920 395 242 779 627 869 136 455 304 166 153 266 484 783 484 711 1185 Hop 97 | . . . 2 10 3 . . 1 5 . . . . 1 . . . . . . . . . . . 11 13 6 7 38 Pick Up 138 | 3 14 20 25 8 . 2 . . 5 1 . 1 1 8 . 4 12 5 8 2 2 . . 2 . 6 3 1 2 3 Fast Attach 240 | 7 7 3 23 5 . . . 2 9 . 1 6 8 24 1 . 13 2 25 . 3 4 . 10 . 11 20 21 25 10 Attach 99 | . 2 10 13 . . . . . 4 1 . . 2 7 3 . 2 2 13 1 11 1 . . 1 13 3 2 4 4 Detach 46 | . . 2 . . . . . . . . . . . 10 1 . 4 . 7 . 9 1 . 1 . 2 2 1 4 2 Swap 122 | . 6 9 26 8 . . . . 5 . . . 6 17 3 2 4 8 7 5 9 . . . . 3 . 3 1 . Drop 231 | . 6 4 29 15 . 2 . 2 11 . 2 6 9 25 1 . 20 7 21 2 2 4 . 9 . 16 3 15 13 7 Fire 554 | 6 28 139 90 . . . . . . . . . . 45 19 5 17 30 40 . 17 1 1 . 3 57 14 29 10 3 Melee 327 | . . . 11 47 . 1 . . 39 5 4 1 15 8 . 4 . 6 33 . 21 . 1 3 3 21 22 13 27 42 Ram 2 | . . . . . . . . . . . . . . . . . . . . . . . . . . . . . 1 1 Kick 2 | . . . . . . . . . . . . . 1 1 . . . . . . . . . . . . . . . . Crush 1 | . . . 1 . . . . . . . . . . . . . . . . . . . . . . . . . . . Escape Stasis 25 | . . . . . . . . . 18 . . . . 5 . . . . . . . . . . . . 2 . . . Rewire 28 | . . . . . . . . . . . . . . . . . 18 6 . . 2 . . . . 1 . 1 . . Trap 1 | . . . . . . . . . . . . . . . . . . 1 . . . . . . . . . . . . Miscellaneous . | . . . . . . . . . . . . . . . . . . . . . . . . . . . . . . . Route ------- -11/Scrapyard -10/Materials (discovered 4 exits: [*Mat x2] / [*Min] / *Sub) -10/Subcaves (discovered 3 exits: *Mat x2 / Rec) -8/Materials (discovered 3 exits: *Fac x3) -7/Factory (discovered 6 exits: *Fac x4 / *Low x2) -7/Lower Caves -7/Lower Caves (discovered 2 exits: *Fac / *Dat) -7/Data Miner -6/Proximity Caves -6/Factory (discovered 6 exits: *Fac x2 / *Low x2 / Ext x2) -6/Lower Caves -6/Lower Caves (discovered 2 exits: *Fac / *Zio) -6/Zion -5/Proximity Caves -5/Factory (discovered 4 exits: *Fac x2 / *Upp x2) -5/Upper Caves -5/Upper Caves (discovered 2 exits: *Fac / *War) -5/Warlord -4/Proximity Caves -4/Factory (discovered 3 exits: Res x3) -4/Waste -4/Factory -4/Upper Caves -4/Upper Caves -4/Zhirov -3/Proximity Caves -3/Research -2/Research -2/Testing -1/Access (discovered 2 exits: Sur / *Com) -1/Command History --------- Turn | Location | Event 7 | -11/Scrapyard | Discovered new exit (range 15) 73 | -11/Scrapyard | Entered Materials 302 | -10/Materials | Build established: Mutant 344 | -10/Materials | Discovered new exit (range 8) 399 | -10/Materials | Discovered new exit (range 11) 630 | -10/Materials | Central database locked down 708 | -10/Materials | Learned location of 2 exits from Subcaves 733 | -10/Materials | Learned location of Mines (-9) 747 | -10/Materials | Learned location of 1 exit from Recycling 752 | -10/Materials | Loaded intel: 20 trap records 766 | -10/Materials | Discovered new exit (range 6) 769 | -10/Materials | Learned Materials trap positions 797 | -10/Materials | Learned 2 Mines zone layouts 885 | -10/Materials | Repaired Lgt. EM Pulse Cannon 918 | -10/Materials | Repaired Lgt. EM Pulse Cannon 946 | -10/Materials | Repaired Lgt. Treads 990 | -10/Materials | Discovered new exit (range 16) 1007 | -10/Materials | Entered Subcaves 1008 | -10/Subcaves | Identified exit to Materials 1008 | -10/Subcaves | Identified exit to Recycling 1049 | -10/Subcaves | Visited 4L-MR0's lab 1091 | -10/Subcaves | Found Powered Cannon 1682 | -10/Subcaves | A swath of the cavern ceiling suddenly collapsed 1788 | -10/Subcaves | Learned Materials terminal intel 1823 | -10/Subcaves | Ambushed by Subdweller buried in earth 1917 | -10/Subcaves | Visited Clippyterm 1922 | -10/Subcaves | Learned location of Deep Caves (-6) 1922 | -10/Subcaves | Learned Research security intel 2082 | -10/Subcaves | Core integrity fell below 50% 2104 | -10/Subcaves | Attached Powered Cannon, gained temporary slot: Power 2133 | -10/Subcaves | Lost 5 parts (2n3w) 2243 | -10/Subcaves | Disturbed a concealed Subdweller 2697 | -10/Subcaves | Shifting Twisted Machinery released Battle Rifle 2705 | -10/Subcaves | Shifting Twisted Machinery released Battle Cannon 2822 | -10/Subcaves | Learned location of Zion (-6) 2822 | -10/Subcaves | Met a Zionite searching for "candidates" 2871 | -10/Subcaves | Shifting Twisted Machinery released Sub. Beam Cannon 2936 | -10/Subcaves | Discovered exit to Materials (range 10) 3046 | -10/Subcaves | Shifting Twisted Machinery released Sub. Monowheel 3136 | -10/Subcaves | Disturbed a concealed Subdweller 4289 | -10/Subcaves | Entered Materials 4289 | -8/Materials | Evolved 4 slots: Propulsion x2, Utility x2 4290 | -8/Materials | Loaded intel: 13 trap records 4291 | -8/Materials | Loaded intel: 12 terminal locations 4333 | -8/Materials | Garrison activated, responded to threat 4524 | -8/Materials | Repaired Spk. Treads 4659 | -8/Materials | Discovered new exit (range 13) 4831 | -8/Materials | Core integrity fell below 50% 4936 | -8/Materials | Lost 10 parts (1p6n1u2w) 5085 | -8/Materials | Learned location of 3 exits from Factory 5131 | -8/Materials | Learned Storage emergency access door positions 5169 | -8/Materials | Learned Storage trap positions 5195 | -8/Materials | Learned location of Extension (-6) 5214 | -8/Materials | Learned location of 1 exit from Recycling 5228 | -8/Materials | Identified exit to Factory 5254 | -8/Materials | Learned Storage stockpile data 5289 | -8/Materials | Learned Storage trap positions 5446 | -8/Materials | Met 7R-MNS 5604 | -8/Materials | Central database locked down 5643 | -8/Materials | Entered Factory 5643 | -7/Factory | Evolved 2 slots: Utility x2 5644 | -7/Factory | Caught up to 7R-MNS 5644 | -7/Factory | Identified exit to Factory 5644 | -7/Factory | Identified exit to Lower Caves 5788 | -7/Factory | Discovered exit to Lower Caves (range 11) 6012 | -7/Factory | Build established: Hacker-Scout 6180 | -7/Factory | Learned Hub_04(d) trap positions 6318 | -7/Factory | Learned 4 Proximity Caves zone layouts 6397 | -7/Factory | Learned 2 Extension zone layouts 6440 | -7/Factory | Learned Extension emergency access door positions 6470 | -7/Factory | Entered Lower Caves 6474 | -7/Lower Caves | Identified exit to Lower Caves 6512 | -7/Lower Caves | Learned 4 Factory zone layouts 6521 | -7/Lower Caves | Entered another Lower Caves area 6539 | -7/Lower Caves | Learned location of 1 exit from Factory 6544 | -7/Lower Caves | Encountered a Warlord checkpoint 6558 | -7/Lower Caves | Discovered new exit (range 9) 6560 | -7/Lower Caves | Identified exit to Data Miner 6560 | -7/Lower Caves | Entered Data Miner 6560 | -7/Data Miner | Discovered new exit (range 6) 6566 | -7/Data Miner | Met Data Miner 6571 | -7/Data Miner | Learned location of Section 7 (-2) 6571 | -7/Data Miner | Acquired the access code to Warlord's prototype stash 6575 | -7/Data Miner | Received God Mode back door access code from Data Miner 6581 | -7/Data Miner | Identified exit to Proximity Caves 6581 | -7/Data Miner | Entered Proximity Caves 6622 | -6/Proximity Caves | Spotted B-75 Beast 6663 | -6/Proximity Caves | Attracted the attention of an 0b10 checkpoint 6675 | -6/Proximity Caves | Entered Factory 6675 | -6/Factory | Evolved 2 slots: Utility x2 6676 | -6/Factory | Identified exit to Extension 6677 | -6/Factory | Identified exit to Lower Caves 6786 | -6/Factory | Discovered new exit (range 14) 6792 | -6/Factory | Identified exit to Factory 6844 | -6/Factory | Repaired Greatsword 6865 | -6/Factory | Spotted B-75 Beast 7000 | -6/Factory | Repaired Mic. Nuclear Core 7120 | -6/Factory | Incoming investigation squad redirected 7125 | -6/Factory | Learned location of 2 exits from Factory 7171 | -6/Factory | Learned Extension trap positions 7199 | -6/Factory | Incoming investigation squad redirected 7205 | -6/Factory | Learned location of 2 exits from Archives 7239 | -6/Factory | Loaded intel: 56 trap records 7240 | -6/Factory | Learned 4 Extension zone layouts 7243 | -6/Factory | Learned 2 Hub_04(d) zone layouts 7257 | -6/Factory | Learned Extension emergency access door positions 7279 | -6/Factory | Learned location of Upper Caves (-5) 7287 | -6/Factory | Incoming investigation squad redirected 7376 | -6/Factory | Central database locked down 7468 | -6/Factory | Fabricated Imp. Remote Force Field (x2) 7482 | -6/Factory | Entered Lower Caves 7482 | -6/Lower Caves | Accompanied by 1 ally 7490 | -6/Lower Caves | Entered a destroyed Warlord outpost 7518 | -6/Lower Caves | Learned Factory interactive machine intel 7578 | -6/Lower Caves | Encountered a Warlord checkpoint 7604 | -6/Lower Caves | Learned Factory emergency access door positions 7774 | -6/Lower Caves | Discovered new exit (range 12) 7777 | -6/Lower Caves | Identified exit to Lower Caves 7777 | -6/Lower Caves | Entered another Lower Caves area 7782 | -6/Lower Caves | Spotted B-75 Beast 7807 | -6/Lower Caves | Discovered exit to Factory (range 5) 7814 | -6/Lower Caves | Learned Factory stockpile data 7816 | -6/Lower Caves | Learned 8 Factory zone layouts 7998 | -6/Lower Caves | Attracted the attention of an 0b10 checkpoint 8010 | -6/Lower Caves | Discovered new exit (range 15) 8014 | -6/Lower Caves | Identified exit to Zion 8028 | -6/Lower Caves | Entered Zion 8047 | -6/Zion | Discovered new exit (range 12) 8061 | -6/Zion | Gained Derelict followers 8069 | -6/Zion | System corruption cleaned by Quarantine Array 8119 | -6/Zion | Found GAL Module 8133 | -6/Zion | Given A8's code to call for help 8207 | -6/Zion | System corruption cleaned by Quarantine Array 8290 | -6/Zion | Found CR-A16's Pointy Stick 8305 | -6/Zion | Learned Factory garrison access intel 8378 | -6/Zion | Met Imprinter 8383 | -6/Zion | Imprinted 8385 | -6/Zion | Declared Zion's savior 8677 | -6/Zion | Identified exit to Proximity Caves 8739 | -6/Zion | Entered Proximity Caves 8739 | -5/Proximity Caves | Accompanied by 8 allies 8749 | -5/Proximity Caves | Learned 4 Factory zone layouts 8754 | -5/Proximity Caves | Learned location of Armory (-4) 8816 | -5/Proximity Caves | Spotter reported a threat 8822 | -5/Proximity Caves | Attracted the attention of an 0b10 checkpoint 8896 | -5/Proximity Caves | Discovered exit to Factory (range 7) 9045 | -5/Proximity Caves | Lost 4 parts (1p3u) 9194 | -5/Proximity Caves | Entered Factory 9194 | -5/Factory | Accompanied by 5 allies 9194 | -5/Factory | Evolved 2 slots: Power x1, Weapon x1 9195 | -5/Factory | Identified exit to Upper Caves 9196 | -5/Factory | Identified exit to Factory 9200 | -5/Factory | Loaded intel: 54 interactive machine locations 9201 | -5/Factory | Loaded intel: 4 garrison access locations 9224 | -5/Factory | Zion Thermal Resupply teleported in 9657 | -5/Factory | Fabricated M-28 Smith (x1) 9679 | -5/Factory | Fabricated Arm. Huge Wheel (x2) 9717 | -5/Factory | Fabricated Rnf. Antimatter Reactor (x2) 9828 | -5/Factory | Fabricated M-28 Smith (x1) 10002 | -5/Factory | Zion Light squad teleported in 10014 | -5/Factory | Build established: Machinist-Tank 10170 | -5/Factory | Garrison activated, responded to threat 10521 | -5/Factory | Discovered exit to Factory (range 7) 10573 | -5/Factory | Terminal network hard line cut 10904 | -5/Factory | Entered Upper Caves 11044 | -5/Upper Caves | Attracted the attention of an 0b10 checkpoint 11339 | -5/Upper Caves | Build established: Machinist-Mutant 11369 | -5/Upper Caves | Learned Factory terminal intel 11555 | -5/Upper Caves | Discovered new exit (range 7) 11581 | -5/Upper Caves | Identified exit to Upper Caves 11582 | -5/Upper Caves | Entered another Upper Caves area 11590 | -5/Upper Caves | Learned 4 Factory zone layouts 11614 | -5/Upper Caves | Discovered exit to Factory (range 5) 11776 | -5/Upper Caves | Learned Factory stockpile data 11784 | -5/Upper Caves | Attracted the attention of an 0b10 base 11958 | -5/Upper Caves | Discovered new exit (range 9) 11968 | -5/Upper Caves | Identified exit to Warlord 11970 | -5/Upper Caves | Entered Warlord 11971 | -5/Warlord | Identified exit to Proximity Caves 12094 | -5/Warlord | Found Prototype Special Weapon 12096 | -5/Warlord | Found Prototype Special Weapon 12099 | -5/Warlord | Found Prototype Special Weapon 12101 | -5/Warlord | Found Prototype Special Weapon 12104 | -5/Warlord | Found Prototype Special Weapon 12106 | -5/Warlord | Found Prototype Special Weapon 12108 | -5/Warlord | Identified RU-N14's Throwing Claymores v3 (x6) 12129 | -5/Warlord | Opened Warlord's prototype stash 12134 | -5/Warlord | Found Prototype Reactor 12134 | -5/Warlord | Identified Vortex Chain Reactor 12139 | -5/Warlord | Found Prototype Device 12139 | -5/Warlord | Identified Exp. Phase Shifter 12652 | -5/Warlord | Build established: Commander-Mutant 12683 | -5/Warlord | Warlord's base attacked by MAIN.C 12688 | -5/Warlord | Rebuked by Warlord 12771 | -5/Warlord | Found Prototype Launcher 12771 | -5/Warlord | Identified Vortex Catalyst Activator 12783 | -5/Warlord | Found Prototype Energy Cannon 12783 | -5/Warlord | Identified Vortex Cannon 12787 | -5/Warlord | Found Vortex Cannon 13008 | -5/Warlord | Destroyed 9 combat bots 13033 | -5/Warlord | Warlord forces counterattacked 13049 | -5/Warlord | Spotted Striker 13050 | -5/Warlord | Spotted Striker 13057 | -5/Warlord | Destroyed Striker 13093 | -5/Warlord | Spotted Striker 13110 | -5/Warlord | Destroyed Striker 13153 | -5/Warlord | Lost 3 allies 13171 | -5/Warlord | Entered Proximity Caves 13171 | -4/Proximity Caves | Accompanied by 4 allies 13863 | -4/Proximity Caves | Lost 3 allies 13864 | -4/Proximity Caves | Build established: Tank 14210 | -4/Proximity Caves | Discovered exit to Factory (range 11) 14239 | -4/Proximity Caves | Entered Factory 14239 | -4/Factory | Accompanied by 1 ally 14239 | -4/Factory | Evolved 2 slots: Power x1, Weapon x1 14240 | -4/Factory | Identified exit to Research 14242 | -4/Factory | Loaded intel: 24 terminal locations 14672 | -4/Factory | Retrieved Zion intel report: Active Terminals 14673 | -4/Factory | Zion Light squad teleported in 14739 | -4/Factory | First assault squad dispatched 14803 | -4/Factory | Lost 3 allies 14811 | -4/Factory | Lost 4 parts (3n1w) 14994 | -4/Factory | Retrieved Zion intel report: Component Schematics 14995 | -4/Factory | Zion Infowar Resupply teleported in 15000 | -4/Factory | Found Prototype Processor 15000 | -4/Factory | Identified Exp. Terrain Scan Processor 15009 | -4/Factory | Incoming assault squad redirected 15023 | -4/Factory | Found Prototype Processor 15024 | -4/Factory | Identified Exp. Signal Interpreter 15098 | -4/Factory | Retrieved Zion intel report: Active Garrisons 15157 | -4/Factory | Retrieved Zion intel report: Emergency Access 15158 | -4/Factory | Zion Heavy squad teleported in 15164 | -4/Factory | Spotted B-86 Titan 15166 | -4/Factory | Incoming assault squad redirected 15183 | -4/Factory | Build established: Scavenger-Assassin 15208 | -4/Factory | Zion Heavy squad teleported in 15279 | -4/Factory | Found Prototype Protection 15279 | -4/Factory | Identified Zio. Weapon Casing 15461 | -4/Factory | Incoming assault squad redirected 15567 | -4/Factory | Found Prototype Protection 15567 | -4/Factory | Identified Zio. Heavy Carapace 15665 | -4/Factory | Discovered exit to Research (range 14) 15683 | -4/Factory | Retrieved Zion intel report: Unaware Analyses 15786 | -4/Factory | Terminal network hard line cut 15822 | -4/Factory | Sucked down chute 15822 | -4/Factory | Entered Waste 15822 | -4/Waste | The area was eerily silent 15929 | -4/Waste | Discovered new exit (range 15) 15949 | -4/Waste | Found Damper Plating 15973 | -4/Waste | Identified exit to Factory 16650 | -4/Waste | Entered Factory 16800 | -4/Factory | Repaired Arm. Huge Wheel 16919 | -4/Factory | Retrieved Zion intel report: Active Terminals 17008 | -4/Factory | Fabricated M-28 Smith? 17258 | -4/Factory | Retrieved Zion intel report: Component Stockpiles 17259 | -4/Factory | Zion Fire squad teleported in 17262 | -4/Factory | Spotted B-86 Titan 17271 | -4/Factory | Destroyed B-86 Titan 17369 | -4/Factory | Retrieved Zion intel report: Active Garrisons 17370 | -4/Factory | Zion Light squad teleported in 17457 | -4/Factory | Discovered new exit (range 14) 17479 | -4/Factory | Identified exit to Upper Caves 17494 | -4/Factory | Entered Upper Caves 17494 | -4/Upper Caves | Accompanied by 9 allies 17875 | -4/Upper Caves | Encountered a Warlord checkpoint 17880 | -4/Upper Caves | Learned Research garrison access intel 17899 | -4/Upper Caves | Discovered new exit (range 13) 17911 | -4/Upper Caves | Learned Factory trap positions 17911 | -4/Upper Caves | Learned Factory terminal intel 17911 | -4/Upper Caves | Learned Research terminal intel 17911 | -4/Upper Caves | Learned Research garrison access intel 17911 | -4/Upper Caves | Learned Armory garrison access intel 17912 | -4/Upper Caves | A Commander dispatched an escort 17958 | -4/Upper Caves | Identified exit to Upper Caves 17968 | -4/Upper Caves | Entered another Upper Caves area 17968 | -4/Upper Caves | Accompanied by 10 allies 17969 | -4/Upper Caves | Commander's escort returned to base 17969 | -4/Upper Caves | Commander's escort returned to base 18186 | -4/Upper Caves | Discovered new exit (range 13) 18202 | -4/Upper Caves | Identified exit to Zhirov 18217 | -4/Upper Caves | Entered Zhirov 18217 | -4/Zhirov | Accompanied by 7 allies 18217 | -4/Zhirov | Discovered new exit (range 3) 18242 | -4/Zhirov | Met Zhirov 18273 | -4/Zhirov | Learned location of Quarantine (-3) 18273 | -4/Zhirov | Learned location of Testing (-2) 18273 | -4/Zhirov | Learned location of Command (-1) 18281 | -4/Zhirov | Zhirov requested help retrieving the SGEMP Prototype 18302 | -4/Zhirov | Found Alien Artifact 18302 | -4/Zhirov | Identified Integrated Reactor 18302 | -4/Zhirov | Installed Integrated Reactor, increased core energy generation (+10) 18321 | -4/Zhirov | Found Alien Artifact 18457 | -4/Zhirov | Identified exit to Proximity Caves 18462 | -4/Zhirov | Entered Proximity Caves 18462 | -3/Proximity Caves | Accompanied by 7 allies 18900 | -3/Proximity Caves | Discovered exit to Research (range 14) 18920 | -3/Proximity Caves | Entered Research 18920 | -3/Research | Accompanied by 5 allies 18920 | -3/Research | Evolved 2 slots: Propulsion x2 18922 | -3/Research | Loaded intel: 21 terminal locations 18923 | -3/Research | Loaded intel: 3 garrison access locations 18931 | -3/Research | Zion Fire squad teleported in 19104 | -3/Research | Zion Explosive Resupply teleported in 19109 | -3/Research | Found Prototype Launcher 19109 | -3/Research | Identified Mni. Smartbomb Launcher 19256 | -3/Research | Lost 3 allies 19309 | -3/Research | Lost 5 allies 19382 | -3/Research | Destroyed 11 combat bots 19402 | -3/Research | Lost 8 parts (2n5u1w) 19420 | -3/Research | First assault squad dispatched 19436 | -3/Research | Incoming assault squad redirected 19557 | -3/Research | Core integrity fell below 50% 19579 | -3/Research | Incoming investigation squad redirected 19585 | -3/Research | Lost 13 parts (1p5n4u3w) 19592 | -3/Research | Core integrity fell below 20% 19622 | -3/Research | Identified Transdimensional Reconstructor 19622 | -3/Research | Warped through subspace 19641 | -3/Research | Discovered new exit (range 8) 19643 | -3/Research | Entered another Research area 19643 | -2/Research | Evolved 2 slots: Propulsion x2 19644 | -2/Research | Identified exit to Testing 19645 | -2/Research | Loaded intel: 4 garrison access locations 19649 | -2/Research | Zion Hacking Resupply teleported in 19674 | -2/Research | Retrieved Zion intel report: Active Terminals 19751 | -2/Research | Found Prototype Processor 19751 | -2/Research | Identified Spectral Analyzer 19830 | -2/Research | Incoming investigation squad redirected 19846 | -2/Research | Retrieved Zion intel report: Prototype Stockpiles 19847 | -2/Research | Zion Melee Resupply teleported in 19855 | -2/Research | Found Prototype Processor 19855 | -2/Research | Identified Exp. Melee Analysis Suite 19913 | -2/Research | Zion Experimental squad teleported in 19915 | -2/Research | Found Prototype Device 19915 | -2/Research | Identified Exp. Actuator Array 19949 | -2/Research | Zion Heavy squad teleported in 19969 | -2/Research | Build established: Hacker-Mutant 20003 | -2/Research | Enhanced Grunt warped into view, answering call for help 20005 | -2/Research | Enhanced Grunt warped into view, answering call for help 20048 | -2/Research | Spotted B-90 Cyclops 20066 | -2/Research | Lost 4 allies 20085 | -2/Research | Incoming investigation squad redirected 20089 | -2/Research | Lost 3 parts (1p2n) 20128 | -2/Research | Entered Testing 20149 | -2/Testing | Found Prototype Energy Cannon 20149 | -2/Testing | Identified Hpw. Disruptor Cannon 20154 | -2/Testing | Lost 5 parts (4n1u) 20162 | -2/Testing | Rewired PL-NT1SD6JSVN 20269 | -2/Testing | Spotted Striker 20324 | -2/Testing | Spotted Striker 20357 | -2/Testing | Destroyed Striker 20406 | -2/Testing | Lost 6 parts (2p2n1u1w) 20435 | -2/Testing | Spotted Alpha 7 20436 | -2/Testing | Stole the SGEMP Prototype 20469 | -2/Testing | Discovered new exit (range 12) 20487 | -2/Testing | Entered Access 20487 | -1/Access | Evolved 2 slots: Propulsion x1, Utility x1 20488 | -1/Access | Delivered the SGEMP Prototype to Zhirov 20488 | -1/Access | Zhirov transferred Access data 20489 | -1/Access | Loaded intel: 125 machine locations 20489 | -1/Access | Loaded intel: 94 trap records 20489 | -1/Access | Identified exit to Surface 20489 | -1/Access | Discovered exit to Surface (range 133) 20489 | -1/Access | Identified exit to Command 20489 | -1/Access | Discovered exit to Command (range 217) 20517 | -1/Access | Zion Infowar Resupply teleported in 20521 | -1/Access | Found Exp. Signal Interpreter 20542 | -1/Access | Zion Zionite Resupply teleported in 20543 | -1/Access | Zion Kinetic Resupply teleported in 20546 | -1/Access | Found Prototype Protection 20546 | -1/Access | Identified Zio. Shade Carapace 20548 | -1/Access | Found Prototype Protection 20548 | -1/Access | Identified Zio. Shade Armor 20781 | -1/Access | Lost 5 parts (1p2n2u) 20784 | -1/Access | Retrieved Zion intel report: Unaware Analyses 20851 | -1/Access | Zion Heavy squad teleported in 20855 | -1/Access | Spotted B-99 Colossus 20871 | -1/Access | Entered Command 21049 | -1/Command | Retrieved Zion intel report: Emergency Access 21064 | -1/Command | Spotted B-99 Colossus 21069 | -1/Command | Retrieved Zion intel report: Unaware Analyses 21076 | -1/Command | Retrieved Zion intel report: Prototype Schematics 21079 | -1/Command | Incoming investigation squad redirected 21110 | -1/Command | Phase Generator disabled 21114 | -1/Command | Lost 4 parts (1p2n1u) 21125 | -1/Command | Retrieved Zion intel report: Active Garrisons 21133 | -1/Command | Build established: Hacker-Sprinter 21139 | -1/Command | Retrieved Zion intel report: Unaware Schematics 21151 | -1/Command | Retrieved Zion intel report: Unaware Analyses 21225 | -1/Command | System corruption reached 10% 21229 | -1/Command | Core integrity fell below 50% 21243 | -1/Command | Core integrity fell below 20% 21253 | -1/Command | Retrieved Zion intel report: Component Stockpiles 21273 | -1/Command | Lost 18 parts (2p8n5u3w) 21275 | -1/Command | Spotted Alpha 7 21293 | -1/Command | Spotted Alpha 7 21308 | -1/Command | Spotted B-99 Colossus 21315 | -1/Command | Destroyed by H-88 Terminator with KE Penetrator Last Messages --------------- 21304_ Slug penetrates H-88 Terminator. 21306_ Penetrated by Slug. 21306_ Acquired Impulse Thruster Array. 21307_ System corrupted: Component data lost. 21309_ ALERT: Potential suspicious activity detected, Programmers report to Command Zone 2D. 21309_ Slug penetrates Wall. 21309_ Penetrated by Slug. 21309_ Slug penetrates Wall. 21309_ Penetrated by Slug. 21309_ Slug penetrates Wall. 21310_ Drone sends a signal. 21312_ Slug penetrates Wall. 21312_ Penetrated by Slug. 21312_ Slug penetrates Wall. 21312_ Adv. Hacking Suite destroyed. 21313_ Terminal disabled. 21314_ Slug penetrates Wall. 21315_ Penetrated by Slug. Map ----- +----------------------------------------------------+ | ????????????# #?????????####????????? ??????### | | ????????????# #??????????????????????? ??????!? | | ????????????# #????????????????????????? ???????? | | ????????????# #?????????????????????????? ??????? | | ????????????# #??????????????????????????????????? | | ?????????####+###????????????????????????????????? | | ?????????# #????????????????????????????????? | | ?????????# #????????????????????????????????? | | ?????????# ] #????????????????????????????????? | | ?????????# #????????????????????????????????? | | ?????????# #????????????????????????????????? | | ?????????# #?? ##????????????????!??????????? | | ?????????#####/## #???????????????????????????? | | ?????????# H ###+####### #??????????????? | | ???#?????# ## ???????????????? | | ???# ????# ##### #???????????????? | | ???# ???# #????###### #???????????????? | | ##### #### ########### ????????????????? | | #=!% # ?????????????????? | | #=! # ??????????????????? | | #= # ]] #??????????????????? | | # + ]] #??????????????????? | | ##### #### ######+###;h ]] ###????????????????? | | ???# ???# #?# ## BB #????????????????? | | ???# ????# #?# ## BB #????????????????? | | ???#?????# #?# ## @ #??????????????????? | | ?????????# #?# ## o##;;##???????????????+?## | | ?????????# #?# ## #??? ???????????? | | ?????????# #?# ## ##???? ????????# | | ?????????# #######+## #?????? ?????## | | ?????????# T" #???????? ???+ | | ?????????# " #?????????? ?? # | | ???????###+########### #???????????????/ | | ???????# #?????######????????????????# | | ???????# #???????????????????????????# | | ???????# !! #???????????????????????????# | | ???????# ! #???????????????????????????# | | ???????# #???????????????????????????# | | ???????# #???????????????????????????# | | ???????# #???????????????????????????# | | ???????# #???????????????????????????# | | ???????# #??????????????????????? ### | | ???????# #????????????????????? + | | ???????# #????????????????????? + " " | | ???????#########?????????????????????? + "Y" | | ?????????????????????????????????????? + """ | | ??????????????????????????????????????? ######### | | ?????????????????????????????????????????????????# | | ?????????????????????????????????????????????????# | | ?????????????????????????????????????????????????# | +----------------------------------------------------+ Best States ------------- Heat Dissipation 104 Energy Generation 71 Energy Capacity 1565 Matter Stores 300 Matter Capacity 300 Sight Range 20 Robot Scan Range 18 Terrain Scan Range 16 Terrain Scan Density 1010 ECM Strength 3 Cloak Strength 3 Corruption Containment 12 Armor Coverage 1600 Resistance: KI 30 Resistance: TH 30 Resistance: EX 30 Resistance: EM 90 Resistance: I 30 Resistance: S 30 Resistance: P 30 Propulsion Shielding 66 Utility Shielding 90 Weapon Shielding 100 Phase Shifting 20 Evasion (%) 66 Targeting Accuracy 5 Melee Accuracy 12 Target Analysis 8 Recoil Reduction 4 Energy Filtering 30 Force Boost 30 Offensive Hacking 34 Defensive Hacking 20 Authchip Count 5 Item Schematics ----------------- Arm. Wheel | -8/Materials | Scanalyzed Prc. Beam Rifle | -8/Materials | Scanalyzed Arm. Huge Wheel | -7/Factory | Hacked EM Disruption Field | -7/Factory | Hacked Plasma Cutter | -7/Factory | Scanalyzed Combat Drone Bay | -7/Data Miner | Free Lgt. Regenerative Plating | -7/Data Miner | Free Cld. Aerolev Unit | -7/Data Miner | Free Exp. Weapon Shielding | -7/Data Miner | Free Imp. Heavy Laser | -7/Data Miner | Free Gyrokinetic Inverter | -7/Data Miner | Free Adv. System Shield | -7/Data Miner | Free Adv. Plasma Cannon | -7/Data Miner | Free Mni. Drone Bay | -7/Data Miner | Free Field Propulsion Array | -7/Data Miner | Free Rnf. Antimatter Reactor | -7/Data Miner | Free Remote Force Field | -6/Factory | Hacked Hyb. Fission Core | -6/Factory | Hacked Imp. Remote Force Field | -6/Factory | Hacked Lrn. Proton Cannon | -6/Zion | Archive Drone Bay | -6/Zion | Archive KE Penetrator | -6/Zion | Archive Thermal Shield | -6/Zion | Archive Imp. Arc Projector | -6/Zion | Archive Imp. Particle Charger | -6/Zion | Archive Adv. Drone Bay | -6/Zion | Archive Proton Cannon | -6/Zion | Archive Railgun | -6/Zion | Archive Adv. Thermal Generator | -6/Zion | Archive Flexi-carbon Leg | -6/Zion | Archive Imp. Recalibrator | -6/Zion | Archive Fission Core | -6/Zion | Archive Imp. Hardlight Generator | -6/Zion | Archive Neutrino Core | -6/Zion | Archive Battle Cannon | -6/Zion | Free Ripper | -6/Zion | Free Phasing Sabre | -6/Zion | Free Tactical Coordination Suite | -4/Factory | Scanalyzed Adv. EM Disruption Field | -4/Factory | Scanalyzed Point Defense System | -4/Factory | Z-intel Focal Shield | -4/Factory | Z-intel Lgt. Antimatter Reactor | -4/Factory | Z-intel Recalibrator | -4/Factory | Z-intel Hvy. Shock Bomb Launcher | -4/Factory | Z-intel Adv. Targeting Computer | -4/Factory | Z-intel Hvy. Gauss Cannon | -4/Factory | Z-intel Dispersion Rifle | -4/Factory | Z-intel Com. Matter Pod | -4/Factory | Z-intel HERF Cannon | -4/Factory | Z-intel Armor Integrity Analyzer | -4/Factory | Z-intel Adv. Recoil Stabilizer | -4/Factory | Z-intel Impulse Thruster | -4/Factory | Z-intel Hardcell Cannon | -4/Factory | Z-intel Assault Drone Bay | -4/Zhirov | Free Exp. Heat Sink | -4/Zhirov | Free Exp. Optical Array | -4/Zhirov | Free Imp. Arc Thrower | -4/Zhirov | Free Enh. Biometal Leg | -1/Command | Z-intel Stealth Drone Bay | -1/Command | Z-intel Adv. Thermal Defense Suite | -1/Command | Z-intel Com. Mass Driver | -1/Command | Z-intel Imp. Matter Neutralizer | -1/Command | Z-intel Adv. Dynamic Insulation System | -1/Command | Z-intel Enh. Armored Heavy Treads | -1/Command | Z-intel Hellfire Missile Launcher | -1/Command | Z-intel Exp. Thermal Shield | -1/Command | Z-intel Electron Diverter | -1/Command | Z-intel Cld. Gravmag System | -1/Command | Z-intel Exp. Core Analyzer | -1/Command | Z-intel Robot Schematics ------------------ M-28 Smith | -8/Materials | Hacked Y-45 Defender | -8/Materials | Hacked Y-54 Guardian | -7/Factory | Hacked B-48 Gladiator | -7/Data Miner | Free R-10 Processor | -7/Data Miner | Free L-41 Fighter | -7/Data Miner | Free G-50 Soldier | -7/Data Miner | Free X-82 Rainmaker | -6/Zion | Archive A-02 Transporter | -6/Zion | Archive C-65 Expert | -1/Command | Z-intel G-73 Enforcer | -1/Command | Z-intel E-15 Imp | -1/Command | Z-intel Fabricated ------------ Imp. Remote Force Field | x2 | -6/Factory | Authchip M-28 Smith | x1 | -5/Factory | Authchip Arm. Huge Wheel | x2 | -5/Factory | Authchip Rnf. Antimatter Reactor | x2 | -5/Factory | Authchip M-28 Smith | x1 | -5/Factory | Authchip M-28 Smith | x1 | -4/Factory | Authchip Repaired ---------- Lgt. EM Pulse Cannon | 47% | -10/Materials Lgt. EM Pulse Cannon | 57% | -10/Materials Lgt. Treads | 42% | -10/Materials Spk. Treads | 12% | -8/Materials Greatsword | 69% | -6/Factory Mic. Nuclear Core | 24% | -6/Factory Arm. Huge Wheel | 18% | -4/Factory Alien Tech Used ----------------- Integrated Reactor Transdimensional Reconstructor Achievements -------------- None Challenges ------------ None Game ------ Seed ShadingPlatingShield Manual? 0 Play Time 05:28:31 Cumulative 397.4 hours Start 2025.07.30 @ 16:09:44 End 2025.07.31 @ 14:44:14 Sessions 5 Manual Loads 0 Difficulty Rogue Special Mode None Game No. 182 Rogue 182 Adventurer 0 Explorer 0 Win Type - Total 26 Types 11/1/5/1/5/1/0/1/0/1 Lore% 92 Gallery% 83 Achievement% 77 Wizard Run 0 Options --------- Layout 1 ASCII 0 Keyboard 0 Movement Numpad Keybinds 0 Fullscreen 1 Font 24/Smallcaps Map View 50x35 Zoom Use 0% Tactical HUD 1 Map Filters NONE Filters NONE Steam 1 RUN: 3ca12daa-6d60-4480-9b09-2ec840b6dc8a